Cogmind - Beta 10 X2 @@@ ROGUE MODE // 2020.06.27 @ 15:28:57 Player: PlasticHeart Result: Escaped singularity! Performance ------------- Evolutions (9) 4500 Regions Visited (43) 8600 Robots Destroyed (290) 1450 Value Destroyed (11360) 11360 Prototype IDs (166) 3320 Alien Tech Used (12) 2400 Bonus (48330) 48330 TOTAL SCORE: 79960 Bonus ------- High Alert Combat Kills 2926 Follower Combat Kills 1376 Aligned with FarCom 300 Met Data Miner 300 Met Imprinter 300 Met Zhirov 300 Met Warlord at Base 500 MAIN.C Attacked Warlord 500 Met Warlord at Research 2000 Destroyed MAIN.C Guards 500 Met MAIN.C 5000 Destroyed MAIN.C Shell 5000 Destroyed MAIN.C 10000 Met Architect 300 Destroyed A8 300 Destroyed A6 400 Destroyed A5 500 Destroyed Architect 15000 Win 3000 Friendly Fire -172 Cogmind --------- Core Integrity 706/1600 Matter 260/300 Energy 2255/2270 System Corruption 2% Temperature Cool (15) Movement Flying (23) Location Near Former Tau Ceti IV Parts ------- > --- POWER (2) -------- Mini Fusion Reactor Zero-point Reactor > --- PROPULSION (6) --- Cooled Nuclear Pulse Thruster Cooled Field Propulsion Drive Electron Diverter Impulse Thruster Array Cooled Q-thruster > --- UTILITY (16) ----- Coolant Network Lightpack 2.0 Experimental Energy Well Experimental Energy Well Experimental Targeting Computer Experimental Targeting Computer Advanced Target Analyzer Experimental Armor Integrity Analyzer Advanced Weapon Cycler SHELL Armor Experimental Force Field > --- WEAPON (2) ------- Sigix Quantum Sheargun Sigix Quantum Sheargun > --- INVENTORY (24) --- Zero-point Reactor Zero-point Reactor Electron Diverter Cooled Q-thruster Small Matter Pod (50) Experimental Matter Compressor (420) Particle Accelerator Improved Overload Amplifier Experimental Powered Armor AEGIS Remote Shield High-powered Transdimensional Reconstructor Cooled Nova Cannon Sigix Broadsword Peak State ------------ > --- POWER ------------ Mini Fusion Reactor Zero-point Reactor > --- PROPULSION ------- Cooled Nuclear Pulse Thruster Cooled Field Propulsion Drive Electron Diverter Impulse Thruster Array Cooled Q-thruster > --- UTILITY ---------- Coolant Network Lightpack 2.0 Experimental Energy Well Experimental Energy Well Experimental Targeting Computer Experimental Targeting Computer Experimental Armor Integrity Analyzer Advanced Weapon Cycler Experimental Utility Shielding Experimental Powered Armor SHELL Armor Experimental Force Field > --- WEAPON ----------- Sigix Terminator > --- INVENTORY -------- Zero-point Reactor Zero-point Reactor Electron Diverter Cooled Q-thruster Small Matter Pod Advanced Target Analyzer Particle Accelerator Improved Overload Amplifier AEGIS Remote Shield Transdimensional Reconstructor Integrity Redistributor Integrity Redistributor Sigix Quantum Sheargun Sigix Quantum Sheargun Sigix Quantum Sheargun Cooled Proton Cannon Cooled Nova Cannon Sigix Broadsword [Rating: 257] Favorites ----------- Power Mini Fusion Reactor Engine Light Angular Momentum Engine Power Core Light Fission Core Reactor Mini Fusion Reactor Propulsion Cooled Nuclear Pulse Thruster Treads Improved Treads Wheel Wheel Flight Unit Cooled Nuclear Pulse Thruster Utility Hacking Suite Device Experimental Sensor Array Storage Large Storage Unit Processor Experimental Signal Interpreter Hackware Hacking Suite Protection SHELL Armor Weapon Improved Datajack Energy Gun Improved EM Shotgun Energy Cannon Vortex Driver Ballistic Gun Heavy Assault Rifle Ballistic Cannon Flak Cannon Launcher Mini Smartbomb Launcher Special Weapon Stasis Beam Slashing Weapon Makeshift Sword Special Melee Weapon Improved Datajack Build | -11 -10 -10 -9 -9 -9 -8 -8 -7 -7 -7 -7 -7 -7 -6 -6 -6 -6 -6 -6 -6 -5 -5 -5 -5 -5 -5 -5 -4 -4 -4 -4 -4 -4 -4 -3 -3 -3 -2 -2 -2 -1 -1 -1 ------- Run | Scr Mat Min Mat Min Exi Min Mat Fac Was Fac Low Low Zio Pro Fac Was Fac Low Low Dat Pro Fac Was Fac Upp Upp Zhi Pro Fac Was Fac Upp Upp War Pro Res Tes Res Qua Sec Acc Com Ac0 Slots Evolved 18 | . . . 2 . . . 2 2 . . . . . . 2 . . . . . . 2 . . . . . . 2 . . . . . . 2 . 2 . . 2 . . Power 1 | . . . . . . . . . . . . . . . . . . . . . . . . . . . . . . . . . . . . . . 1 . . . . . Propulsion 4 | . . . 1 . . . . . . . . . . . . . . . . . . 1 . . . . . . . . . . . . . 1 . 1 . . . . . Utility 13 | . . . 1 . . . 2 2 . . . . . . 2 . . . . . . 1 . . . . . . 2 . . . . . . 1 . . . . 2 . . Weapon . | . . . . . . . . . . . . . . . . . . . . . . . . . . . . . . . . . . . . . . . . . . . . Parts Attached 349 | 7 10 4 37 3 2 . 23 15 . 3 4 2 2 2 7 . 1 . 3 . . 6 3 12 . 8 9 1 14 3 3 4 . 14 . 7 11 6 3 45 13 31 31 Power 22 | 1 1 . 5 . . . 3 2 . . . . . . 1 . 1 . . . . 1 . 2 . . . . 2 . . . . . . . . 1 . . . 1 1 Engine 12 | 1 1 . 5 . . . 3 2 . . . . . . . . . . . . . . . . . . . . . . . . . . . . . . . . . . . Core 3 | . . . . . . . . . . . . . . . 1 . 1 . . . . 1 . . . . . . . . . . . . . . . . . . . . . Reactor 7 | . . . . . . . . . . . . . . . . . . . . . . . . 2 . . . . 2 . . . . . . . . 1 . . . 1 1 Propulsion 69 | 2 2 1 19 . 1 . 9 3 . 1 . . . . 1 . . . . . . 3 1 3 . . 6 . 3 . . . . 3 . 2 1 1 . 2 2 3 . Treads 20 | . . . 11 . 1 . 8 . . . . . . . . . . . . . . . . . . . . . . . . . . . . . . . . . . . . Leg . | . . . . . . . . . . . . . . . . . . . . . . . . . . . . . . . . . . . . . . . . . . . . Wheel 13 | 2 2 1 8 . . . . . . . . . . . . . . . . . . . . . . . . . . . . . . . . . . . . . . . . Hover . | . . . . . . . . . . . . . . . . . . . . . . . . . . . . . . . . . . . . . . . . . . . . Flight 36 | . . . . . . . 1 3 . 1 . . . . 1 . . . . . . 3 1 3 . . 6 . 3 . . . . 3 . 2 1 1 . 2 2 3 . Utility 126 | 2 3 . 1 . 1 . 3 8 . 2 . 1 2 . 4 . . . . . . 2 . 7 . 2 3 . 6 . . . . 5 . 2 3 2 2 26 9 20 10 Device 71 | . . . . . . . . 2 . 1 . 1 . . . . . . . . . . . 6 . 1 2 . 1 . . . . 4 . 1 2 2 . 24 7 12 5 Storage 21 | 2 3 . 1 . 1 . 3 . . . . . 1 . . . . . . . . . . . . . 1 . . . . . . . . . 1 . . 2 . 3 3 Processor 6 | . . . . . . . . 1 . 1 . . . . . . . . . . . . . . . . . . . . . . . . . . . . . . 2 1 1 Hackware 21 | . . . . . . . . 5 . . . . 1 . 4 . . . . . . 2 . 1 . . . . 5 . . . . 1 . 1 . . 1 . . . . Protection 7 | . . . . . . . . . . . . . . . . . . . . . . . . . . 1 . . . . . . . . . . . . 1 . . 4 1 Artifact . | . . . . . . . . . . . . . . . . . . . . . . . . . . . . . . . . . . . . . . . . . . . . Weapon 132 | 2 4 3 12 3 . . 8 2 . . 4 1 . 2 1 . . . 3 . . . 2 . . 6 . 1 3 3 3 4 . 6 . 3 7 2 1 17 2 7 20 Energy Gun 31 | 2 1 . 1 . . . 6 . . . . . . . . . . . . . . . . . . . . . . . . . . 1 . . 1 1 . . . 4 14 Energy Cannon 22 | . . . . . . . . . . . . . . . . . . . . . . . . . . . . . . 1 . . . 1 . . 5 1 . 8 1 2 3 Ballistic Gun 23 | . 3 2 10 . . . . . . . 2 . . . . . . . 1 . . . 1 . . . . . . . 2 1 . . . 1 . . . . . . . Ballistic Cannon 5 | . . . . 2 . . 1 . . . . . . . . . . . . . . . . . . . . . . . . . . . . 1 . . . . . . 1 Launcher 13 | . . 1 1 1 . . . . . . . . . . . . . . . . . . . . . 2 . 1 . . . 2 . 1 . 1 . . . 1 . . 2 Special Weapon 1 | . . . . . . . . . . . . . . . . . . . . . . . . . . . . . . 1 . . . . . . . . . . . . . Impact Weapon . | . . . . . . . . . . . . . . . . . . . . . . . . . . . . . . . . . . . . . . . . . . . . Slashing Weapon 29 | . . . . . . . 1 1 . . 2 1 . 1 . . . . 1 . . . 1 . . 3 . . 2 1 . 1 . 2 . . 1 . 1 8 1 1 . Piercing Weapon . | . . . . . . . . . . . . . . . . . . . . . . . . . . . . . . . . . . . . . . . . . . . . Special Melee Weapon 8 | . . . . . . . . 1 . . . . . 1 1 . . . 1 . . . . . . 1 . . 1 . 1 . . 1 . . . . . . . . . Unidentified Prototypes 29 | . . . . . . . 1 . . . . 1 . . . . . . . . . . . . . . 3 . . . . . . 5 . . 4 2 1 5 . 2 5 Parts Lost 33 | . 4 1 9 1 . . 9 . . . . . . . . . . . . . . . . . . . . 3 . . . . . . . . 1 . . . . . 5 Power 2 | . . . 1 . . . 1 . . . . . . . . . . . . . . . . . . . . . . . . . . . . . . . . . . . . Propulsion 13 | . 2 1 5 . . . 4 . . . . . . . . . . . . . . . . . . . . 1 . . . . . . . . . . . . . . . Utility 5 | . . . . . . . . . . . . . . . . . . . . . . . . . . . . 2 . . . . . . . . 1 . . . . . 2 Weapon 13 | . 2 . 3 1 . . 4 . . . . . . . . . . . . . . . . . . . . . . . . . . . . . . . . . . . 3 Highest Loss Streak 4 | . 2 1 3 1 . . 4 . . . . . . . . . . . . . . . . . . . . 3 . . . . . . . . 1 . . . . . 2 Average Slot Usage (%) 92 | . 94 100 99 99 100 100 99 90 100 100 100 96 86 85 89 93 93 93 92 93 93 93 94 93 94 94 92 91 92 94 95 95 95 95 95 89 89 91 79 78 75 79 78 Engine 4 | . 14 14 10 11 11 11 8 7 7 7 7 7 7 7 . . . . . . . . . . . . . . . . . . . . . . . . . . . . . Reactor 2 | . . . . . . . . . . . . . . . . . . . . . . . . 4 5 5 5 5 5 5 5 5 5 5 5 4 4 8 8 8 7 7 7 Treads 6 | . . . 17 33 33 33 27 . . . . . . . . . . . . . . . . . . . . . . . . . . . . . . . . . . . . Wheel 2 | . 23 28 15 . . . . . . . . . . . . . . . . . . . . . . . . . . . . . . . . . . . . . . . . Flight 14 | . . . . . . . . 22 23 23 23 22 21 21 18 18 18 18 18 18 18 21 22 21 22 22 22 20 20 20 20 20 20 20 20 18 18 20 20 20 19 19 19 Device 5 | . . . . . . . . 6 7 7 7 7 7 7 6 6 6 6 6 6 6 5 5 5 5 4 3 5 9 10 10 10 10 10 10 12 12 12 8 7 11 10 10 Storage 14 | . 28 28 33 33 33 33 45 1 . . . . 5 7 6 6 6 6 6 6 6 5 5 5 5 5 5 5 5 5 5 5 5 5 5 4 4 4 4 7 7 7 10 Processor 4 | . . . . . . . . 6 7 7 7 7 7 7 6 6 6 6 6 6 6 5 5 5 5 5 5 5 5 5 5 5 5 5 5 4 4 4 4 4 3 14 14 Hackware 22 | . . . . . . . . 28 38 38 38 36 29 28 33 37 37 37 37 37 37 38 38 38 38 38 38 36 37 40 40 40 40 40 40 36 36 33 25 20 18 2 . Energy Gun 1 | . 3 . . . . . 13 . . . . . . . . . . . . . . . . . . . . . . . . . . . . . . . . . . 4 4 Ballistic Gun 3 | . 23 17 21 3 . . . . . . . . . . . . . . . . . . 1 . . . . . . . 1 3 . . . . . . . . . . . Ballistic Cannon 1 | . . . . 17 22 22 4 . . . . . . . . . . . . . . . . . . . . . . . . . . . . . . . . . . . . Slashing Weapon 3 | . . . . . . . . 6 7 7 6 7 7 6 6 6 6 6 5 6 6 5 3 5 5 4 5 3 5 1 5 3 5 4 5 4 4 4 4 3 2 . . Special Melee Weapon 2 | . . . . . . . . 6 7 7 7 7 1 . 5 6 6 6 5 6 6 5 5 5 5 5 5 5 5 5 3 . . . . . . . . . . . . Naked Turns . | . . . . . . . . . . . . . . . . . . . . . . . . . . . . . . . . . . . . . . . . . . . . Heaviest Build 114 | 17 43 41 59 65 81 81 114 14 14 14 17 13 17 17 18 16 16 16 19 16 16 16 18 16 16 16 16 18 18 26 24 25 21 21 21 28 34 41 61 71 76 102 101 Greatest Support 115 | 20 20 20 69 69 69 68 68 18 18 18 17 17 17 17 19 19 19 19 19 19 19 27 27 28 30 28 34 38 33 33 33 33 33 34 34 52 54 66 66 100 108 109 115 Greatest Overweight (x) 6 | 1 6 2 2 . 1 1 2 . . . . . . . . . . . . . . . . . . . . . . . . . . . . . . . . . . . . Average Overweight (x) . | . 1 2 . . . 1 1 . . . . . . . . . . . . . . . . . . . . . . . . . . . . . . . . . . . . Largest Inventory Capacity 36 | 8 16 16 22 22 24 24 36 36 4 4 4 4 24 24 24 24 24 24 24 24 24 24 24 24 24 24 24 24 24 24 24 24 24 24 24 24 24 24 24 24 24 24 24 Average Capacity 21 | 5 12 16 21 22 22 24 35 4 4 4 4 4 19 24 24 24 24 24 24 24 24 24 24 24 24 24 24 24 24 24 24 24 24 24 24 24 24 24 24 24 24 24 24 Most Carried 30 | 6 16 16 22 22 23 23 30 23 4 4 4 4 9 21 23 22 24 19 24 21 21 24 24 24 23 24 24 24 24 24 24 24 24 24 24 24 24 24 24 24 24 24 23 Average Carried 19 | 2 9 15 20 21 22 23 25 3 3 3 4 4 7 15 18 21 22 19 19 21 18 21 23 22 21 22 23 24 23 23 23 24 24 23 24 23 23 23 23 23 22 23 17 Final Capacity 36 | 8 16 16 22 22 24 24 36 4 4 4 4 4 24 24 24 24 24 24 24 24 24 24 24 24 24 24 24 24 24 24 24 24 24 24 24 24 24 24 24 24 24 24 24 Final Carried 24 | 2 16 16 22 22 23 23 23 3 4 4 4 4 9 21 21 22 19 19 21 21 18 22 22 22 23 23 24 24 23 23 24 24 24 24 24 24 24 24 24 24 23 22 14 Class Distribution -------------------- 48% | Wizard-Sprinter 24% | Hauler-Mutant 16% | Hacker-Sprinter 5% | Mutant 4% | Machinist-Sprinter Dominant Class ---------------- Mutant | -10/Materials Mutant | -10/Mines Hauler-Mutant | -9/Materials Hauler-Mutant | -9/Mines Hauler-Mutant | -9/Exiles Hauler-Mutant | -8/Mines Hauler-Mutant | -8/Materials Hacker-Sprinter | -7/Factory Hacker-Sprinter | -7/Waste Hacker-Sprinter | -7/Factory Hacker-Sprinter | -7/Lower Caves Hacker-Sprinter | -7/Lower Caves Hacker-Sprinter | -7/Zion Hacker-Sprinter | -6/Proximity Caves Wizard-Sprinter | -6/Factory Wizard-Sprinter | -6/Waste Wizard-Sprinter | -6/Factory Wizard-Sprinter | -6/Lower Caves Wizard-Sprinter | -6/Lower Caves Wizard-Sprinter | -6/Data Miner Wizard-Sprinter | -5/Proximity Caves Wizard-Sprinter | -5/Factory Wizard-Sprinter | -5/Waste Wizard-Sprinter | -5/Factory Wizard-Sprinter | -5/Upper Caves Wizard-Sprinter | -5/Upper Caves Wizard-Sprinter | -5/Zhirov Wizard-Sprinter | -4/Proximity Caves Wizard-Sprinter | -4/Factory Wizard-Sprinter | -4/Waste Wizard-Sprinter | -4/Factory Wizard-Sprinter | -4/Upper Caves Wizard-Sprinter | -4/Upper Caves Wizard-Sprinter | -4/Warlord Wizard-Sprinter | -3/Proximity Caves Wizard-Sprinter | -3/Research Wizard-Sprinter | -3/Testing Wizard-Sprinter | -2/Research Wizard-Sprinter | -2/Quarantine Wizard-Sprinter | -2/Section 7 Wizard-Sprinter | -1/Access Machinist-Sprinter | -1/Command Machinist-Sprinter | -1/Access_0 Resources | -11 -10 -10 -9 -9 -9 -8 -8 -7 -7 -7 -7 -7 -7 -6 -6 -6 -6 -6 -6 -6 -5 -5 -5 -5 -5 -5 -5 -4 -4 -4 -4 -4 -4 -4 -3 -3 -3 -2 -2 -2 -1 -1 -1 ----------- Run | Scr Mat Min Mat Min Exi Min Mat Fac Was Fac Low Low Zio Pro Fac Was Fac Low Low Dat Pro Fac Was Fac Upp Upp Zhi Pro Fac Was Fac Upp Upp War Pro Res Tes Res Qua Sec Acc Com Ac0 Matter Collected 7884 | 270 368 85 1128 311 . 84 454 21 129 30 9 92 24 30 70 . 97 84 134 . . 30 185 120 8 131 343 25 279 20 204 219 13 312 290 147 177 145 30 547 98 426 715 Remotely . | . . . . . . . . . . . . . . . . . . . . . . . . . . . . . . . . . . . . . . . . . . . . Salvage Created 13389 | 81 582 11 1736 178 . 21 1813 21 . 218 . . . 48 372 . 425 76 285 . 27 399 921 252 13 171 93 . 416 560 371 195 . . 286 166 177 405 35 669 99 848 1419 Parts 616 | 1 47 2 110 8 . 6 105 3 . 16 . . . 3 9 . 24 1 3 . . 7 16 9 3 9 . . 13 5 20 9 . . 4 9 6 14 3 21 5 43 82 Haulers Intercepted 28 | . 1 . 6 . . . 5 . . 3 . . . . 2 . 1 . . . . 3 . 1 . . . . 1 . 1 . . . . . . 4 . . . . . Recyclers Shooed 9 | . 3 . 3 . . . . . . . . . . . 2 . . . . . . . . 1 . . . . . . . . . . . . . . . . . . . Parts Field Recycled . | . . . . . . . . . . . . . . . . . . . . . . . . . . . . . . . . . . . . . . . . . . . . Retrieved Matter . | . . . . . . . . . . . . . . . . . . . . . . . . . . . . . . . . . . . . . . . . . . . . Parts Self-Destructed 56 | . . . . . . . . . . . . . . 21 . . . . . . 6 . . . . 9 . . . . . 6 . 11 3 . . . . . . . . Prevented 5 | . . . . . . . . . . . . . . . . . . . . . . . . . . . . . . . . . . 5 . . . . . . . . . Kills | -11 -10 -10 -9 -9 -9 -8 -8 -7 -7 -7 -7 -7 -7 -6 -6 -6 -6 -6 -6 -6 -5 -5 -5 -5 -5 -5 -5 -4 -4 -4 -4 -4 -4 -4 -3 -3 -3 -2 -2 -2 -1 -1 -1 ------- Run | Scr Mat Min Mat Min Exi Min Mat Fac Was Fac Low Low Zio Pro Fac Was Fac Low Low Dat Pro Fac Was Fac Upp Upp Zhi Pro Fac Was Fac Upp Upp War Pro Res Tes Res Qua Sec Acc Com Ac0 Combat Hostiles Destroyed 178 | . 11 3 31 14 . 3 32 . . . . . . . . . 4 . 5 . 2 1 . . 1 6 . . . . . 7 . . 4 4 . . . 5 1 8 36 Melee 2 | . . . . . . . . . . . . . . . . . . . . . . . . . . . . . . . . . . . . . . . . 1 1 . . Guns 82 | . 11 . 25 . . . 22 . . . . . . . . . . . . . . . . . . . . . . . . 1 . . . . . . . . . 6 17 Cannons 17 | . . . . 10 . 3 3 . . . . . . . . . . . . . . . . . . . . . . . . . . . . . . . . . . . 1 AOE 65 | . . 3 6 4 . . 6 . . . . . . . . . 4 . 1 . 2 . . . 1 6 . . . . . 6 . . 4 4 . . . . . . 18 Classes Destroyed 21 | 1 7 . 2 2 . . . . . . . . . 1 . . 2 . 1 . . . . . 1 . . . . . . 1 . . . . . . . 1 . 2 . Worker 28 | . 3 . 4 . . . 7 . . . . . . . . . 3 . . . . 1 . 1 . . . . 2 . 3 . . . . . . 2 . 1 . 1 . Builder 3 | . 1 . . . . . . . . . . . . . . . 1 . . . . . . . . . . . . . . . . . . . . . . . 1 . . Tunneler 3 | . . . . . . . . . . . . . . . . . 1 . . . . . . . . . . . . . 1 . . . . 1 . . . . . . . Hauler 28 | . 1 . 6 . . . 5 . . 3 . . . . 2 . 1 . . . . 3 . 1 . . . . 1 . 1 . . . . . . 4 . . . . . Recycler 9 | 1 1 . 1 . . . . . . . . . . . 1 . . . . . . . . 1 . . . . . . 1 . . . . 1 1 . . 1 . . . Minesweeper 4 | . . . . . . . . . . . . . . 2 . . . . 1 . . . . . . 1 . . . . . . . . . . . . . . . . . Mechanic 1 | . . . . . . . . . . . . . . . . . . . . . . . . . . . . . . . . . . . . . . . . . . 1 . Operator 14 | . 2 . 3 . . . 1 1 . 1 . . . . . . 1 . . . . . . . . . . . 2 . 1 . . . . . . . 1 . 1 . . Drone 2 | . . . . . . . . . . . . . . . . . 1 . . . . . . . . . . . . . . . . . . . . . . . 1 . . Watcher 17 | . 3 . . . . . 2 . . 2 . . . . 1 . 3 . . . . . . . . . . . 2 . 1 . . . . . 1 . . 1 1 . . Swarmer 44 | . 6 3 4 2 . 3 11 . . . . . . . . . . . . . 2 . . . . 4 . . . . . 5 . . . 4 . . . . . . . Grunt 47 | . 5 . 17 3 . . 13 . . . . . . . . . 2 . . . . . . . . 2 . . . . . . . . 4 . . . . 1 . . . Brawler 2 | . . . . 1 . . . . . . . . . . . . . . . . . 1 . . . . . . . . . . . . . . . . . . . . . Duelist 3 | . . . 1 . . . 1 . . . . . . . . . 1 . . . . . . . . . . . . . . . . . . . . . . . . . . Researcher 1 | . . . . . . . . . . . . . . . . . . . . . . . . . . . . . . . . . . . . . . . . 1 . . . Sentry 21 | . . . 9 . . . 7 . . . . . . . . . . . . . . . . . . . . . . . . 1 . . . . . . . 3 . 1 . Hunter 2 | . . . . . . . . . . . . . . . . . . . . . . . . . . . . . . . . . . . . . . . . . . 2 . Programmer 3 | . . . . . . . . . . . . . . . . . . . . . . . . . . . . . . . . 1 . . . . . . . 1 . 1 . M Guard 2 | . . . . . . . . . . . . . . . . . . . . . . . . . . . . . . . . . . . . . . . . . . 2 . Enhanced Grunt 27 | . . . . . . . . . . . . . . . . . . . . . . . . . . . . . . . . . . . . . . . . . . . 27 Enhanced Hunter 5 | . . . . . . . . . . . . . . . . . . . . . . . . . . . . . . . . . . . . . . . . . . . 5 Combat Programmer 1 | . . . . . . . . . . . . . . . . . . . . . . . . . . . . . . . . . . . . . . . . . . 1 . Decomposer 4 | . . . . . . . . . . . . . . . . . . 3 . . . . . . . . . . . . . 1 . . . . . . . . . . . Master Thief 1 | . . . . . . . . . . . . . . . . . . . . . . . . . 1 . . . . . . . . . . . . . . . . . . Assembled 8 | . . . . 8 . . . . . . . . . . . . . . . . . . . . . . . . . . . . . . . . . . . . . . . Thug 2 | . . . . . . . . . . . . . . . . . . . 2 . . . . . . . . . . . . . . . . . . . . . . . . Savage 1 | . . . . . . . . . . . . . . . . . . . 1 . . . . . . . . . . . . . . . . . . . . . . . . Butcher 1 | . . . . . . . . . . . . . . . . . . . 1 . . . . . . . . . . . . . . . . . . . . . . . . Mutant 1 | . . . . . . . . . . . . . . . . . . . 1 . . . . . . . . . . . . . . . . . . . . . . . . Best Kill Streak 18 | 1 3 3 8 8 . 3 6 1 . 1 . . . 1 2 . 6 . 3 . 2 1 . 1 1 4 . . 3 . 2 5 . . 4 5 1 2 1 3 1 4 18 Combat Bots Only 18 | . 3 3 6 8 . 3 5 . . . . . . . . . 3 . 3 . 2 1 . . 1 4 . . . . . 5 . . 4 4 . . . 3 1 4 18 Max Kills in Single Turn 18 | 1 1 2 3 3 . 2 3 1 . 1 . . . 1 1 . 6 1 2 . 2 1 . 1 1 4 . . 3 . 1 4 . . 2 2 1 1 1 1 1 1 18 Gunslinging 1 | . . . 1 . . . . . . . . . . . . . . . . . . . . . . . . . . . . . . . . . . . . . . . 1 Exploded 18 | . . 2 3 3 . . 1 . . . . . . . . . 3 . 1 . 2 . . . 1 4 . . . . . 4 . . 2 2 . . . . . . 18 Melee 1 | . . . . . . . . . . . . . . . . . . . . . . . . . . . . . . . . . . . . . . . . 1 1 . . Uniques/NPCs Destroyed 5 | . . . . . . . . . . . . . . . . . . . . . . . . . . . . . . . . . . . . . . . . . . 1 4 MAIN.C Shell (-1/Command) MAIN.C (-1/Command) A8 (-1/Access_0) A6 (-1/Access_0) A5 (-1/Access_0) Architect (-1/Access_0) Combat | -11 -10 -10 -9 -9 -9 -8 -8 -7 -7 -7 -7 -7 -7 -6 -6 -6 -6 -6 -6 -6 -5 -5 -5 -5 -5 -5 -5 -4 -4 -4 -4 -4 -4 -4 -3 -3 -3 -2 -2 -2 -1 -1 -1 -------- Run | Scr Mat Min Mat Min Exi Min Mat Fac Was Fac Low Low Zio Pro Fac Was Fac Low Low Dat Pro Fac Was Fac Upp Upp Zhi Pro Fac Was Fac Upp Upp War Pro Res Tes Res Qua Sec Acc Com Ac0 Damage Taken 11139 | . 482 60 1296 504 . 13 2116 15 . . 15 . . . 78 . 38 . 13 . 33 . . . 100 . . 183 24 . . . . . . . 303 . 277 796 282 410 4101 Core 1114 | . 53 6 211 77 . . 173 15 . . 15 . . . 26 . 19 . 13 . . . . . . . . 22 . . . . . . . . 81 . . . . 18 385 Absorbed by Shields 4616 | . . . . . . . . . . . . . . . . . . . . . . . . . . . . . . . . . . . . . . . . . 24 414 4178 Core Remaining (%) 81 | 100 . 76 . . . 28 68 . . . . . . 95 . . . . . . 93 . . . . . . 97 . . . . . . 100 . 93 . . 100 . . 44 Volleys Fired 635 | 6 73 3 127 24 . 2 107 . . . 9 . . . . . . . 5 . . . 25 . . 3 . 4 . 8 31 18 . . 4 9 . . . 20 3 35 119 Largest 2 | 2 2 2 2 2 . 2 2 . . . 1 . . . . . . . 1 . . . 1 . . 1 . 1 . 1 1 1 . . 1 1 . . . 1 1 2 2 Hottest 250 | 80 80 46 88 88 . 88 90 . . . 35 . . . . . . . 35 . . . 35 . . 80 . 80 . 88 40 80 . . 80 80 . . . 120 120 200 250 Shots Fired 1087 | 12 134 4 249 45 . 4 207 . . . 9 . . . . . . . 5 . . . 25 . . 3 . 4 . 8 31 18 . . 4 9 . . . 19 3 62 232 Gun 936 | 12 134 2 245 8 . . 168 . . . 9 . . . . . . . 5 . . . 25 . . . . . . . 31 13 . . . . . . . . . 56 228 Cannon 122 | . . . . 34 . 4 39 . . . . . . . . . . . . . . . . . . . . . . 8 . . . . . 6 . . . 19 3 6 3 Launcher 29 | . . 2 4 3 . . . . . . . . . . . . . . . . . . . . . 3 . 4 . . . 5 . . 4 3 . . . . . . 1 Special . | . . . . . . . . . . . . . . . . . . . . . . . . . . . . . . . . . . . . . . . . . . . . Kinetic 530 | . 116 2 238 42 . 4 39 . . . 9 . . . . . . . 5 . . . 25 . . . . . . . 31 13 . . . 6 . . . . . . . Thermal 22 | . 3 . 7 . . . . . . . . . . . . . . . . . . . . . . . . . . . . . . . . . . . . 7 . 2 3 Explosive 28 | . . 2 4 3 . . . . . . . . . . . . . . . . . . . . . 3 . 4 . . . 5 . . 4 3 . . . . . . . Electromagnetic 218 | 12 15 . . . . . 168 . . . . . . . . . . . . . . . . . . . . . . 8 . . . . . . . . . 7 3 4 1 Slashing 284 | . . . . . . . . . . . . . . . . . . . . . . . . . . . . . . . . . . . . . . . . . . 56 228 Entropic 5 | . . . . . . . . . . . . . . . . . . . . . . . . . . . . . . . . . . . . . . . . 5 . . . Robot Hit Streak 39 | 3 6 4 14 8 . 2 16 . . . 1 . . . . . . . 3 . . . 17 . . . . . . 5 16 6 . . . 3 . . . 5 . 39 29 Robot Miss Streak 8 | 1 4 1 8 6 . 3 8 . . . 3 . . . . . . . 1 . . . 2 . . . . . . 1 3 4 . . . 1 . . . 3 3 2 4 Penetration Max 2 | . . . . . . . . . . . . . . . . . . . . . . . . . . . . . . . 2 . . . . . . . . . . 1 1 Secondary Targets 8 | . . . 2 . . . 3 . . . . . . . . . . . . . . . . . . . . . . . . . . . . . . . . . . 1 2 Max Gunslinging Chain 1 | . . . 1 . . . 1 . . . . . . . . . . . . . . . . . . . . . . . . . . . . . . . . . . 1 1 Shots Hit Robots 957 | 8 70 3 177 39 . 3 181 2 . 18 2 . . 8 17 . 3 3 7 . . 23 28 5 . 5 8 . 15 6 26 8 . . 2 9 4 12 3 14 7 50 191 Core Hits 579 | 2 30 3 75 31 . 5 102 1 . 6 . . . 2 6 . 29 1 8 . 2 11 5 3 2 9 1 4 10 1 8 12 . . 14 6 2 6 1 4 3 31 143 Critical Hits 50 | . . . 1 . . . 2 . . . 1 . . . . . . . . . . 2 11 . . . 1 . . . 4 3 . . . 1 . . 3 . 1 2 18 Critical Kills 14 | . . . . . . . . . . . . . . . . . . . . . . . 2 . . . . . . . . 2 . . . . . . 1 . . . 9 Critical Parts Destroyed 26 | . . . 1 . . . 2 . . . 1 . . . . . . . . . . 2 4 . . . . . . . 2 1 . . . . . . 2 . 1 2 8 Melee Attacks 955 | . . . . . . . 2 32 . 89 34 3 . 10 80 . 79 13 23 . 6 98 7 66 4 7 8 3 82 . 60 8 . 3 9 41 38 17 27 56 41 4 5 Impact . | . . . . . . . . . . . . . . . . . . . . . . . . . . . . . . . . . . . . . . . . . . . . Slashing 937 | . . . . . . . 2 31 . 84 34 3 . 8 76 . 79 13 23 . 6 95 7 66 4 7 8 3 79 . 60 8 . 3 9 41 38 17 27 56 41 4 5 Piercing . | . . . . . . . . . . . . . . . . . . . . . . . . . . . . . . . . . . . . . . . . . . . . Sneak Attacks 66 | . . . . . . . . 1 . 10 . . . 3 8 . . 3 1 . . 7 . 5 . 1 . . 5 . 7 . . . . 2 2 6 . 2 3 . . Combat Hostiles 4 | . . . . . . . . . . . . . . . 2 . . . . . . . . . . . . . 2 . . . . . . . . . . . . . . Follow-up Attacks . | . . . . . . . . . . . . . . . . . . . . . . . . . . . . . . . . . . . . . . . . . . . . Damage Inflicted 51936 | 88 999 187 3069 774 . 50 3252 43 . 856 8 . . 389 801 . 1620 340 835 . 296 1409 558 572 121 870 829 169 999 228 1256 637 . . 846 1099 400 1169 287 1598 1281 2240 21761 Guns 14776 | 88 967 . 2623 92 . . 2165 . . . 8 . . . . . . . 23 . . . 188 . . . . . . . 113 57 . . . . . . . . . 2050 6402 Cannons 2176 | . . . . 293 . 50 276 . . . . . . . . . . . . . . . . . . . . . . 228 . . . . . 12 . . . 852 132 190 143 Explosions 22684 | . 32 187 446 389 . . 811 . . . . . . . . . 1463 . 568 . 296 341 . . 121 607 . 169 161 . . 580 . . 582 715 . . . . . . 15216 Melee 12300 | . . . . . . . . 43 . 856 . . . 389 801 . 157 340 244 . . 1068 370 572 . 263 829 . 838 . 1143 . . . 264 372 400 1169 287 746 1149 . . Ramming . | . . . . . . . . . . . . . . . . . . . . . . . . . . . . . . . . . . . . . . . . . . . . Kinetic 4458 | . 821 . 2525 385 . 50 276 . . . 8 . . . . . . . 23 . . . 188 . . . . . . . 113 57 . . . 12 . . . . . . . Thermal 16490 | . 52 . 98 . . . 811 . . . . . . . . . . . . . . . . . . . . . . . . . . . . . . . . 203 . . 15326 Explosive 4628 | . . 187 446 389 . . . . . . . . . . . . 953 . . . . . . . . 607 . 169 . . . 580 . . 582 715 . . . . . . . Electromagnetic 5494 | 88 126 . . . . . 2165 . . . . . . . . . 510 . 568 . 296 341 . . 121 . . . 161 228 . . . . . . . . . 535 132 190 33 Impact . | . . . . . . . . . . . . . . . . . . . . . . . . . . . . . . . . . . . . . . . . . . . . Slashing 20752 | . . . . . . . . 43 . 856 . . . 389 801 . 157 340 244 . . 1068 370 572 . 263 829 . 838 . 1143 . . . 264 372 400 1169 287 746 1149 2050 6402 Piercing . | . . . . . . . . . . . . . . . . . . . . . . . . . . . . . . . . . . . . . . . . . . . . Entropic 114 | . . . . . . . . . . . . . . . . . . . . . . . . . . . . . . . . . . . . . . . . 114 . . . Highest Corruption 3 | . . . 3 3 3 3 . . . . . . . . . . . . . . . . . 2 3 3 3 3 . . 1 1 1 2 . . 3 . . 3 . 3 2 Average Corruption 2 | . . . 2 3 3 3 . . . . . . . . . . . . . . . . . 2 2 3 3 3 . . 1 1 1 1 . . 1 . . 2 . 2 1 Corruption Purged 3 | . . . . . . . . . . . . . . . . . . . . . . . . . . . . . . . . . . . . . . . . . . 3 . Effects 90 | . . . 16 11 9 2 . . . . . . . . . . . . . . . . . 7 1 5 2 1 . . 1 1 . . . . 2 . . 15 . 8 9 Message Errors 24 | . . . 4 2 2 2 . . . . . . . . . . . . . . . . . 1 . 3 2 . . . 1 . . . . . 1 . . 4 . 1 1 Matter Fused 17 | . . . 1 4 5 . . . . . . . . . . . . . . . . . . . 1 2 . 1 . . . . . . . . . . . 1 . 2 . Heat Flow Errors 10 | . . . 4 . . . . . . . . . . . . . . . . . . . . 2 . . . . . . . . . . . . 1 . . 2 . 1 . Energy Discharges 11 | . . . 2 2 2 . . . . . . . . . . . . . . . . . . 2 . . . . . . . . . . . . . . . 1 . 2 . Data Loss (minor) 10 | . . . 2 1 . . . . . . . . . . . . . . . . . . . 1 . . . . . . . 1 . . . . . . . 3 . . 2 Targeting Errors 14 | . . . 2 2 . . . . . . . . . . . . . . . . . . . 1 . . . . . . . . . . . . . . . 3 . 1 5 Weapon Failures 4 | . . . 1 . . . . . . . . . . . . . . . . . . . . . . . . . . . . . . . . . . . . 1 . 1 1 Overload Shots 15 | . . . . . . . . . . . . . . . . . . . . . . . . . . . . . . . . . . . . . . . . 5 3 4 3 Effects 4 | . . . . . . . . . . . . . . . . . . . . . . . . . . . . . . . . . . . . . . . . . 1 . 3 Heat Surge 1 | . . . . . . . . . . . . . . . . . . . . . . . . . . . . . . . . . . . . . . . . . 1 . . Short Circuit 1 | . . . . . . . . . . . . . . . . . . . . . . . . . . . . . . . . . . . . . . . . . . . 1 Meltdown 2 | . . . . . . . . . . . . . . . . . . . . . . . . . . . . . . . . . . . . . . . . . . . 2 Overflow Damage 3742 | . 1 6 . 35 . . 108 . . 83 . . . 81 223 . 104 194 74 . 14 196 . 148 . 96 131 17 65 . 2 13 . . . 143 42 201 . 291 502 . 972 Projectiles 165 | . . . . . . . . . . . . . . . . . . . . . . . . . . . . . . . . . . . . . . . . 113 52 . . Explosions 1363 | . 1 6 . 35 . . 108 . . . . . . . . . 79 . 29 . 14 39 . . . 2 . 17 . . . 13 . . . 48 . . . . . . 972 Melee 2214 | . . . . . . . . . . 83 . . . 81 223 . 25 194 45 . . 157 . 148 . 94 131 . 65 . 2 . . . . 95 42 201 . 178 450 . . Knockbacks 13 | . . . . 7 . 1 5 . . . . . . . . . . . . . . . . . . . . . . . . . . . . . . . . . . . . Impact . | . . . . . . . . . . . . . . . . . . . . . . . . . . . . . . . . . . . . . . . . . . . . Kinetic 12 | . . . . 6 . 1 5 . . . . . . . . . . . . . . . . . . . . . . . . . . . . . . . . . . . . Secondary 1 | . . . . 1 . . . . . . . . . . . . . . . . . . . . . . . . . . . . . . . . . . . . . . . Self-Inflicted Damage 1461 | . 45 31 16 93 . . 389 . . . . . . . . . . . . . . . . . 77 . . . . . . . . . . . . . . . . . 810 Shots 15 | . 1 1 1 2 . . 8 . . . . . . . . . . . . . . . . . 1 . . . . . . . . . . . . . . . . . 1 Rammed . | . . . . . . . . . . . . . . . . . . . . . . . . . . . . . . . . . . . . . . . . . . . . Targets Rammed . | . . . . . . . . . . . . . . . . . . . . . . . . . . . . . . . . . . . . . . . . . . . . Kicked . | . . . . . . . . . . . . . . . . . . . . . . . . . . . . . . . . . . . . . . . . . . . . Crushed . | . . . . . . . . . . . . . . . . . . . . . . . . . . . . . . . . . . . . . . . . . . . . Highest Temperature 277 | 88 143 . 254 168 . 42 255 . . . . . . . . . . . . . . . . 271 13 68 . 225 . 80 6 64 . . 84 54 90 177 . 277 61 199 68 Average Temperature 66 | 44 49 . 75 52 . 21 56 . . . . . . . . . . . . . . . . 120 8 26 . 102 . 38 4 27 . . 36 19 45 55 . 110 35 108 32 Received Heat Transfer 1811 | . 156 . 579 48 . . 684 9 . . . . . . . . 18 . . . . . . . 9 . . 9 . . . . . . . . . . 36 36 40 32 155 Effects 5 | . . . 1 . . . . . . . . . . . . . . . . . . . . . . . . 1 . . . . . . . . . . . 3 . . . Energy Bleed 4 | . . . 1 . . . . . . . . . . . . . . . . . . . . . . . . 1 . . . . . . . . . . . 2 . . . Interference 1 | . . . . . . . . . . . . . . . . . . . . . . . . . . . . . . . . . . . . . . . . 1 . . . Siege Activations . | . . . . . . . . . . . . . . . . . . . . . . . . . . . . . . . . . . . . . . . . . . . . Robots Corrupted 13 | . . . . . . . 1 . . . . . . . . . . . 3 . . 1 . . . . . . . 2 . . . . . . . . . 4 . 2 . Combat Hostiles 13 | . . . . . . . 1 . . . . . . . . . . . 3 . . 1 . . . . . . . 2 . . . . . . . . . 4 . 2 . Parts Fried 37 | 2 1 . . . . . 11 . . . . . . . . . 3 . 1 . 1 . . . 1 . . . 1 2 . . . . . . . . . 5 . 9 . Impact Corruptions . | . . . . . . . . . . . . . . . . . . . . . . . . . . . . . . . . . . . . . . . . . . . . Robots Melted . | . . . . . . . . . . . . . . . . . . . . . . . . . . . . . . . . . . . . . . . . . . . . Combat Hostiles . | . . . . . . . . . . . . . . . . . . . . . . . . . . . . . . . . . . . . . . . . . . . . Parts Melted 2 | . . . . . . . 2 . . . . . . . . . . . . . . . . . . . . . . . . . . . . . . . . . . . . Heat Transferred 1513 | . 100 . 120 . . . 750 . . . . . . . . . . . . . . . . . . . . . . . . . . . . . . . . 111 . . 432 Parts Sabotaged . | . . . . . . . . . . . . . . . . . . . . . . . . . . . . . . . . . . . . . . . . . . . . Parts Stolen . | . . . . . . . . . . . . . . . . . . . . . . . . . . . . . . . . . . . . . . . . . . . . Parts Stripped . | . . . . . . . . . . . . . . . . . . . . . . . . . . . . . . . . . . . . . . . . . . . . Power Chain Reactions 19 | . 1 . . . . . 12 . . . . . . . . . 6 . . . . . . . . . . . . . . . . . . . . . . . . . . Missiles Intercepted . | . . . . . . . . . . . . . . . . . . . . . . . . . . . . . . . . . . . . . . . . . . . . Alert | -11 -10 -10 -9 -9 -9 -8 -8 -7 -7 -7 -7 -7 -7 -6 -6 -6 -6 -6 -6 -6 -5 -5 -5 -5 -5 -5 -5 -4 -4 -4 -4 -4 -4 -4 -3 -3 -3 -2 -2 -2 -1 -1 -1 ------- Run | Scr Mat Min Mat Min Exi Min Mat Fac Was Fac Low Low Zio Pro Fac Was Fac Low Low Dat Pro Fac Was Fac Upp Upp Zhi Pro Fac Was Fac Upp Upp War Pro Res Tes Res Qua Sec Acc Com Ac0 Peak Influence 940 | 5 186 103 614 353 . 70 496 304 108 502 . . . . 256 94 664 . . . . 184 34 450 . . . . 513 25 456 . . . . 563 241 113 161 281 449 940 . Average Influence 179 | 1 90 95 388 185 . 69 236 219 94 177 . . . . 119 57 291 . . . . 78 34 129 . . . . 165 25 109 . . . . 159 131 36 70 76 267 555 . Maximum Alert Level 4 | . . . 2 1 . . 2 1 . 2 . . . . 1 . 2 . . . . . . 2 . . . . 2 . 2 . . . . 2 1 . . 1 2 4 . Low Security (%) 66 | 100 100 100 17 69 . 100 40 36 100 71 . . . . 78 100 41 . . . . 100 100 74 . . . . 72 100 84 . . . . 89 92 100 100 91 22 10 . Level 1 17 | . . . 23 30 . . 46 63 . 7 . . . . 21 . 19 . . . . . . 8 . . . . 19 . . . . . . . 7 . . 8 72 6 . Level 2 13 | . . . 58 . . . 13 . . 20 . . . . . . 39 . . . . . . 17 . . . . 8 . 15 . . . . 10 . . . . 4 5 . Level 3 . | . . . . . . . . . . . . . . . . . . . . . . . . . . . . . . . . . . . . . . . . . . 25 . Level 4 1 | . . . . . . . . . . . . . . . . . . . . . . . . . . . . . . . . . . . . . . . . . . 53 . Level 5 . | . . . . . . . . . . . . . . . . . . . . . . . . . . . . . . . . . . . . . . . . . . . . High Security . | . . . . . . . . . . . . . . . . . . . . . . . . . . . . . . . . . . . . . . . . . . . . Max Security . | . . . . . . . . . . . . . . . . . . . . . . . . . . . . . . . . . . . . . . . . . . . . Squads Dispatched 50 | . 3 1 5 . . . 2 1 . 5 . . . . 2 . 6 . . . . 3 . 1 . . . 1 5 . 3 . . . . . . 1 3 4 2 2 . Investigation 7 | . . 1 2 . . . 1 . . 1 . . . . . . 1 . . . . 1 . . . . . . . . . . . . . . . . . . . . . Extermination 12 | . . . . . . . . 1 . 1 . . . . 1 . . . . . . 1 . 1 . . . . 2 . 1 . . . . . . . 1 2 1 . . Reinforcement 27 | . 3 . 3 . . . 1 . . 3 . . . . 1 . 5 . . . . 1 . . . . . . 1 . 1 . . . . . . 1 2 2 1 2 . Assault 2 | . . . . . . . . . . . . . . . . . . . . . . . . . . . . 1 . . 1 . . . . . . . . . . . . Garrison 2 | . . . . . . . . . . . . . . . . . . . . . . . . . . . . . 2 . . . . . . . . . . . . . . Intercept . | . . . . . . . . . . . . . . . . . . . . . . . . . . . . . . . . . . . . . . . . . . . . Construction Impeded . | . . . . . . . . . . . . . . . . . . . . . . . . . . . . . . . . . . . . . . . . . . . . Haulers Reinforced 5 | . . . . . . . . . . 2 . . . . 1 . . . . . . 1 . . . . . . . . 1 . . . . . . . . . . . . Stealth | -11 -10 -10 -9 -9 -9 -8 -8 -7 -7 -7 -7 -7 -7 -6 -6 -6 -6 -6 -6 -6 -5 -5 -5 -5 -5 -5 -5 -4 -4 -4 -4 -4 -4 -4 -3 -3 -3 -2 -2 -2 -1 -1 -1 --------- Run | Scr Mat Min Mat Min Exi Min Mat Fac Was Fac Low Low Zio Pro Fac Was Fac Low Low Dat Pro Fac Was Fac Upp Upp Zhi Pro Fac Was Fac Upp Upp War Pro Res Tes Res Qua Sec Acc Com Ac0 Distress Signals 58 | . 3 . 2 . . . 6 3 . 1 . . . . 2 . 2 . . . . 1 . 2 . . . . 3 . 2 . . . . 1 . 6 1 2 1 20 . Communications Jammed 29 | . . . . . . . . . . . . . . . . . . . . . . . . . . . . . . . . . . . . 6 . . . 17 6 . . Distress Signals 26 | . . . . . . . . . . . . . . . . . . . . . . . . . . . . . . . . . . . . 6 . . . 17 3 . . Times Spotted 509 | . 36 4 53 20 . 1 80 21 5 9 3 . . . 7 3 27 . 6 . 6 8 . 6 3 . . 13 10 . 6 . . . 3 5 5 6 9 31 41 25 57 Peak Tracking Total 30 | . 4 3 7 7 . 1 6 10 5 4 4 . . . 2 2 8 . 5 . 5 4 . 4 3 1 . 15 5 . 3 1 . . 4 3 2 2 5 12 12 8 30 Tactical Retreats 80 | . 2 . . 1 . . 18 5 . 1 1 . . . 1 . 5 . 3 . 1 1 . 2 2 . . 1 1 . 2 1 . . . 2 1 . 2 7 10 1 9 Traps | -11 -10 -10 -9 -9 -9 -8 -8 -7 -7 -7 -7 -7 -7 -6 -6 -6 -6 -6 -6 -6 -5 -5 -5 -5 -5 -5 -5 -4 -4 -4 -4 -4 -4 -4 -3 -3 -3 -2 -2 -2 -1 -1 -1 ------- Run | Scr Mat Min Mat Min Exi Min Mat Fac Was Fac Low Low Zio Pro Fac Was Fac Low Low Dat Pro Fac Was Fac Upp Upp Zhi Pro Fac Was Fac Upp Upp War Pro Res Tes Res Qua Sec Acc Com Ac0 Traps Triggered 28 | . . . 5 . . . . 1 . 1 . . . . 4 . . . . . . 2 . 4 . . . . 7 . 1 . . . . . 2 . . . 1 . . Indirectly . | . . . . . . . . . . . . . . . . . . . . . . . . . . . . . . . . . . . . . . . . . . . . Trap Hack Attempts . | . . . . . . . . . . . . . . . . . . . . . . . . . . . . . . . . . . . . . . . . . . . . Triggered . | . . . . . . . . . . . . . . . . . . . . . . . . . . . . . . . . . . . . . . . . . . . . Disarmed . | . . . . . . . . . . . . . . . . . . . . . . . . . . . . . . . . . . . . . . . . . . . . Reprogrammed . | . . . . . . . . . . . . . . . . . . . . . . . . . . . . . . . . . . . . . . . . . . . . Reused 18 | . . . . . . . . . . . . . . . 4 . 3 . 6 . 2 1 . . 2 . . . . . . . . . . . . . . . . . . Traps Extracted . | . . . . . . . . . . . . . . . . . . . . . . . . . . . . . . . . . . . . . . . . . . . . Installed 23 | . . . . . . . . . . . . . . 1 4 . 4 . 7 . 3 1 . . 2 . . . 1 . . . . . . . . . . . . . . Triggered 19 | . . . . . . . 1 . . . . . . . 4 . 3 . . . 1 1 . . . . . . . . . . 3 6 . . . . . . . . . Machines | -11 -10 -10 -9 -9 -9 -8 -8 -7 -7 -7 -7 -7 -7 -6 -6 -6 -6 -6 -6 -6 -5 -5 -5 -5 -5 -5 -5 -4 -4 -4 -4 -4 -4 -4 -3 -3 -3 -2 -2 -2 -1 -1 -1 ---------- Run | Scr Mat Min Mat Min Exi Min Mat Fac Was Fac Low Low Zio Pro Fac Was Fac Low Low Dat Pro Fac Was Fac Upp Upp Zhi Pro Fac Was Fac Upp Upp War Pro Res Tes Res Qua Sec Acc Com Ac0 Machines Disabled 66 | . 2 . 5 . . . 3 . . . . . . . 1 . 20 . . . . 1 . . . . . . 5 . . . . . . . 8 . 4 9 . 3 5 Max in Single Turn 8 | . 1 . 2 . . . 1 . . . . . . . 1 . 8 . . . . 1 . . . . . . 4 . . . . . . . 1 . 1 1 . 1 1 Garrison Access 18 | . . . . . . . 1 . . 4 . . . . 2 . 2 . . . . 2 . 3 . . . . 2 . . . . . . 1 . . . 1 . . . Machines Sabotaged . | . . . . . . . . . . . . . . . . . . . . . . . . . . . . . . . . . . . . . . . . . . . . Garrisons Compromised . | . . . . . . . . . . . . . . . . . . . . . . . . . . . . . . . . . . . . . . . . . . . . Overloaded Fab Kills 4 | . . . . . . . . . . . . . . . . . 4 . . . . . . . . . . . . . . . . . . . . . . . . . . Fab Network Shutdowns 5 | . . . . . . . . . . 1 . . . . . . . . . . . . . 1 . . . . 1 . 1 . . . . 1 . . . . . . . Hacking | -11 -10 -10 -9 -9 -9 -8 -8 -7 -7 -7 -7 -7 -7 -6 -6 -6 -6 -6 -6 -6 -5 -5 -5 -5 -5 -5 -5 -4 -4 -4 -4 -4 -4 -4 -3 -3 -3 -2 -2 -2 -1 -1 -1 --------- Run | Scr Mat Min Mat Min Exi Min Mat Fac Was Fac Low Low Zio Pro Fac Was Fac Low Low Dat Pro Fac Was Fac Upp Upp Zhi Pro Fac Was Fac Upp Upp War Pro Res Tes Res Qua Sec Acc Com Ac0 Machines Accessed 226 | . 4 1 10 . 2 . 9 9 . 24 . . . . 17 . 18 . . 4 . 16 . 27 . . 4 . 20 . 7 . . 2 . 7 7 1 9 15 8 5 . Terminals 151 | . 4 . 9 . . . 8 7 . 15 . . . . 10 . 11 . . . . 9 . 15 . . . . 14 . 5 . . . . 5 6 . 8 13 7 5 . Fabricators 26 | . . . . . . . . 2 . 2 . . . . 3 . 2 . . . . 4 . 5 . . . . 2 . 2 . . . . 1 1 1 . . 1 . . Repair Stations 7 | . . . 1 . . . . . . 1 . . . . . . 1 . . . . . . 3 . . . . 1 . . . . . . . . . . . . . . Recycling Units . | . . . . . . . . . . . . . . . . . . . . . . . . . . . . . . . . . . . . . . . . . . . . Scanalyzers 11 | . . . . . . . . . . 2 . . . . 2 . 2 . . . . 1 . 1 . . . . 1 . . . . . . . . . 1 1 . . . Garrison Access 18 | . . . . . . . 1 . . 4 . . . . 2 . 2 . . . . 2 . 3 . . . . 2 . . . . . . 1 . . . 1 . . . Total Hacks 789 | . 14 1 31 . 5 . 22 32 . 64 . . . . 70 . 75 . . 27 . 64 . 85 . . 17 . 64 . 35 . . 2 . 36 26 5 30 46 27 11 . Successful 651 | . 7 1 21 . 5 . 11 25 . 48 . . . . 59 . 60 . . 27 . 53 . 76 . . 17 . 62 . 33 . . 2 . 20 22 5 28 39 22 8 . Failed 137 | . 7 . 10 . . . 11 7 . 16 . . . . 11 . 15 . . . . 10 . 9 . . . . 2 . 2 . . . . 16 4 . 2 7 5 3 . Catastrophic 12 | . 2 . . . . . 1 . . 1 . . . . 1 . 1 . . . . 2 . 1 . . . . . . . . . . . 2 . . . 1 . . . Database Lockouts 1 | . . . . . . . . . . . . . . . . . . . . . . 1 . . . . . . . . . . . . . . . . . . . . . Manual 344 | . 1 . 16 . 1 . 5 17 . 25 . . 1 . 30 . 38 . . . . 33 . 34 . . . . 33 . 20 . . 1 . 22 13 1 14 27 10 2 . Terminals 566 | . 14 . 28 . . . 20 26 . 48 . . . . 40 . 58 . . . . 40 . 60 . . . . 49 . 27 . . . . 30 21 . 28 44 22 11 . Fabricators 93 | . . . . . . . . 6 . 5 . . . . 12 . 5 . . . . 18 . 12 . . . . 7 . 8 . . . . 5 5 5 . . 5 . . Repair Stations 18 | . . . 3 . . . . . . 2 . . . . . . 2 . . . . . . 6 . . . . 5 . . . . . . . . . . . . . . Recycling Units . | . . . . . . . . . . . . . . . . . . . . . . . . . . . . . . . . . . . . . . . . . . . . Scanalyzers 38 | . . . . . . . . . . 3 . . . . 15 . 8 . . . . 4 . 4 . . . . 1 . . . . . . . . . 2 1 . . . Garrison Access 22 | . . . . . . . 2 . . 6 . . . . 3 . 2 . . . . 2 . 3 . . . . 2 . . . . . . 1 . . . 1 . . . Terminal Hacks 357 | . 6 1 12 . 5 . 9 13 . 25 . . . . 19 . 24 . . 27 . 20 . 38 . . 17 . 34 . 19 . . 2 . 10 10 . 18 23 18 7 . Record 20 | . . . . . 4 . . . . . . . . . . . . . . 11 . . . . . . 5 . . . . . . . . . . . . . . . . Part Schematic 35 | . . . . . . . . 2 . 3 . . . . 3 . 2 . . 7 . 3 . 5 . . 4 . 2 . 1 . . . . 1 1 . 1 . . . . Robot Schematic 6 | . . . . . . . . . . . . . . . . . . . . 6 . . . . . . . . . . . . . . . . . . . . . . . Robot Analysis 6 | . 1 . . . . . . . . . . . . . . . . . . . . . . . . . 4 . . . . . . . . 1 . . . . . . . Prototype ID Bank 43 | . 1 . 4 . . . . 2 . 4 . . . . 1 . 2 . . 3 . 3 . 5 . . 4 . 2 . 2 . . . . 1 3 . 2 1 2 1 . Open Door 9 | . . 1 . . . . . . . . . . . . . . . . . . . . . . . . . . . . . . . 2 . . . . . 5 . 1 . Level Access Points 3 | . . . . . . . . . . . . . . . . . . . . . . . . . . . . . . . . . . . . . 1 . . 1 1 . . Branch Access Points 9 | . 1 . 1 . . . 1 . . 1 . . . . . . 1 . . . . . . 1 . . . . . . 1 . . . . 1 . . . . 1 . . Emergency Access Points 1 | . . . . . . . . . . . . . . . . . . . . . . . . . . . . . . . . . . . . . . . . 1 . . . Machine Index 8 | . . . . . . . . . . 1 . . . . . . . . . . . . . 1 . . . . 1 . 1 . . . . . 1 . 1 . 1 1 . Terminal Index 9 | . . . . . . . . 1 . 1 . . . . 1 . 1 . . . . 1 . 1 . . . . 1 . 1 . . . . . . . . . 1 . . Fabricator Index 7 | . . . . . . . . 1 . 1 . . . . 1 . . . . . . 1 . 1 . . . . . . 1 . . . . . . . 1 . . . . Repair Station Index 2 | . . . . . . . . . . . . . . . . . 1 . . . . . . . . . . . 1 . . . . . . . . . . . . . . Scanalyzer Index 2 | . . . . . . . . . . . . . . . 1 . 1 . . . . . . . . . . . . . . . . . . . . . . . . . . Garrison Index 2 | . . . . . . . . . . . . . . . . . 1 . . . . . . . . . . . 1 . . . . . . . . . . . . . . Alert Level 5 | . . . 2 . . . 2 . . . . . . . . . . . . . . . . 1 . . . . . . . . . . . . . . . . . . . Unreport Threat 31 | . 1 . 1 . . . 2 . . . . . . . . . . . . . . . . 4 . . . . 4 . 4 . . . . 3 1 . 3 4 4 . . Locate Traps 68 | . 1 . 2 . . . 2 4 . 7 . . . . 7 . 5 . . . . 5 . 9 . . . . 10 . 3 . . . . 1 1 . 3 5 2 1 . Recall Investigation 1 | . . . . . . . . . . . . . . . . . . . . . . 1 . . . . . . . . . . . . . . . . . . . . . Recall Extermination 11 | . . . . . . . . . . 1 . . . . . . . . . . . 1 . 1 . . . . 2 . 2 . . . . . . . 1 2 1 . . Recall Reinforcements 11 | . 1 . . . . . . . . 2 . . . . . . 4 . . . . . . . . . . . 1 . . . . . . . . . 2 . . 1 . Recall Assault 1 | . . . . . . . . . . . . . . . . . . . . . . . . . . . . . . . 1 . . . . . . . . . . . . Hauler Manifests 15 | . . . 1 . . . 1 1 . 1 . . . . 2 . 1 . . . . 1 . 3 . . . . 1 . . . . . . 1 . . . 1 1 . . Registered Components 1 | . . . . . . . . . . . . . . . . . . . . . . . . 1 . . . . . . . . . . . . . . . . . . . Zone Layout 48 | . . . 1 . . . 1 2 . 3 . . . . 3 . 5 . . . . 4 . 5 . . . . 8 . 2 . . . . 1 2 . 4 3 4 . . EX-Prototype ID Bank 1 | . . . . . 1 . . . . . . . . . . . . . . . . . . . . . . . . . . . . . . . . . . . . . . Disengage Seal 2 | . . . . . . . . . . . . . . . . . . . . . . . . . . . . . . . . . . . . . . . . . . 2 . Fabricator Hacks 67 | . . . . . . . . 3 . 4 . . . . 8 . 4 . . . . 14 . 10 . . . . 5 . 4 . . . . 4 4 4 . . 3 . . Network Status 14 | . . . . . . . . . . . . . . . 1 . 1 . . . . 6 . 5 . . . . 1 . . . . . . . . . . . . . . Load Schematic 25 | . . . . . . . . 2 . 2 . . . . 3 . 1 . . . . 4 . 2 . . . . 2 . 2 . . . . 2 2 2 . . 1 . . Build 28 | . . . . . . . . 1 . 2 . . . . 4 . 2 . . . . 4 . 3 . . . . 2 . 2 . . . . 2 2 2 . . 2 . . Repair Station Hacks 16 | . . . 2 . . . . . . 2 . . . . . . 2 . . . . . . 5 . . . . 5 . . . . . . . . . . . . . . Scan Component 7 | . . . 1 . . . . . . 1 . . . . . . 1 . . . . . . 2 . . . . 2 . . . . . . . . . . . . . . Repair 7 | . . . 1 . . . . . . 1 . . . . . . 1 . . . . . . 2 . . . . 2 . . . . . . . . . . . . . . Refit 2 | . . . . . . . . . . . . . . . . . . . . . . . . 1 . . . . 1 . . . . . . . . . . . . . . Recycling Unit Hacks . | . . . . . . . . . . . . . . . . . . . . . . . . . . . . . . . . . . . . . . . . . . . . Scanalyzer 38 | . . . . . . . . . . 3 . . . . 15 . 8 . . . . 4 . 4 . . . . 1 . . . . . . . . . 2 1 . . . Insert Component 22 | . . . . . . . . . . 2 . . . . 8 . 4 . . . . 2 . 2 . . . . 1 . . . . . . . . . 2 1 . . . Analyze 16 | . . . . . . . . . . 1 . . . . 7 . 4 . . . . 2 . 2 . . . . . . . . . . . . . . . . . . . Garrison Access Hacks 18 | . . . . . . . 1 . . 4 . . . . 2 . 2 . . . . 2 . 3 . . . . 2 . . . . . . 1 . . . 1 . . . Seal Access 18 | . . . . . . . 1 . . 4 . . . . 2 . 2 . . . . 2 . 3 . . . . 2 . . . . . . 1 . . . 1 . . . Unauthorized Hacks 155 | . 1 . 7 . . . 1 9 . 10 . . . . 15 . 20 . . . . 13 . 16 . . . . 15 . 10 . . . . 5 8 1 8 14 1 1 . Terminals 134 | . 1 . 7 . . . 1 9 . 10 . . . . 11 . 19 . . . . 9 . 14 . . . . 13 . 6 . . . . 4 7 . 8 14 . 1 . Track 64 | . 1 . 5 . . . 1 4 . 6 . . . . 4 . 7 . . . . 5 . 7 . . . . 6 . 2 . . . . . 4 . 4 7 . 1 . Assimilate 27 | . . . . . . . . 2 . 2 . . . . 4 . 5 . . . . 2 . 1 . . . . 4 . 1 . . . . 2 . . 1 3 . . . Botnet 34 | . . . 2 . . . . 2 . 2 . . . . 3 . 5 . . . . 1 . 4 . . . . 2 . 3 . . . . 2 3 . 3 2 . . . Detonate 3 | . . . . . . . . . . . . . . . . . 2 . . . . . . . . . . . 1 . . . . . . . . . . . . . . Disrupt 6 | . . . . . . . . 1 . . . . . . . . . . . . . 1 . 2 . . . . . . . . . . . . . . . 2 . . . Fabricators 21 | . . . . . . . . . . . . . . . 4 . 1 . . . . 4 . 2 . . . . 2 . 4 . . . . 1 1 1 . . 1 . . Prioritize 16 | . . . . . . . . . . . . . . . 3 . . . . . . 4 . 1 . . . . 2 . 2 . . . . 1 1 1 . . 1 . . Siphon 4 | . . . . . . . . . . . . . . . 1 . . . . . . . . 1 . . . . . . 2 . . . . . . . . . . . . Overload 1 | . . . . . . . . . . . . . . . . . 1 . . . . . . . . . . . . . . . . . . . . . . . . . . Repair Stations . | . . . . . . . . . . . . . . . . . . . . . . . . . . . . . . . . . . . . . . . . . . . . Recycling Units . | . . . . . . . . . . . . . . . . . . . . . . . . . . . . . . . . . . . . . . . . . . . . Scanalyzers . | . . . . . . . . . . . . . . . . . . . . . . . . . . . . . . . . . . . . . . . . . . . . Garrison Access . | . . . . . . . . . . . . . . . . . . . . . . . . . . . . . . . . . . . . . . . . . . . . Data Cores Recovered 7 | . . . . . . . . 1 . 1 . . . . . . 1 . . . . . . . . . . . 1 . 1 . . . . . . . 1 . 1 . . Used 5 | . . . . . . . . 1 . 1 . . . . . . 1 . . . . . . . . . . . 1 . 1 . . . . . . . . . . . . Hacking Detections 125 | . 3 . 7 . . . 7 6 . 13 . . . . 13 . 10 . . . . 8 . 11 . . . . 7 . 4 . . . . 5 4 1 5 10 7 4 . Full Trace Events . | . . . . . . . . . . . . . . . . . . . . . . . . . . . . . . . . . . . . . . . . . . . . Feedback Events . | . . . . . . . . . . . . . . . . . . . . . . . . . . . . . . . . . . . . . . . . . . . . Feedback Blocked . | . . . . . . . . . . . . . . . . . . . . . . . . . . . . . . . . . . . . . . . . . . . . Robot Schematics Acquired 6 | . . . . . . . . . . . . . . . . . . . . 6 . . . . . . . . . . . . . . . . . . . . . . . Robots Built . | . . . . . . . . . . . . . . . . . . . . . . . . . . . . . . . . . . . . . . . . . . . . Matter . | . . . . . . . . . . . . . . . . . . . . . . . . . . . . . . . . . . . . . . . . . . . . Time . | . . . . . . . . . . . . . . . . . . . . . . . . . . . . . . . . . . . . . . . . . . . . Total Robot Build Rating . | . . . . . . . . . . . . . . . . . . . . . . . . . . . . . . . . . . . . . . . . . . . . Part Schematics Acquired 44 | . . . . . . . . 2 . 4 . . . . 6 . 6 . . 7 . 4 . 6 . . 4 . 2 . . . . . . 1 1 . 1 . . . . Parts Built 25 | . . . . . . . . 1 . 2 . . . . 3 . . . . . . 4 . 3 . . . . 2 . 2 . . . . 2 2 2 . . 2 . . Matter 8136 | . . . . . . . . 168 . 570 . . . . 1119 . . . . . . 1272 . 861 . . . . 636 . 669 . . . . 702 669 636 . . 834 . . Time 2107 | . . . . . . . . 42 . 152 . . . . 485 . . . . . . 336 . 110 . . . . 169 . 356 . . . . 131 84 131 . . 111 . . Total Part Build Rating 163 | . . . . . . . . 4 . 10 . . . . 23 . . . . . . 24 . 20 . . . . 12 . 13 . . . . 14 13 12 . . 18 . . Parts Repaired 7 | . . . 1 . . . . . . 1 . . . . . . 1 . . . . . . 2 . . . . 2 . . . . . . . . . . . . . . Time 553 | . . . 50 . . . . . . 78 . . . . . . 95 . . . . . . 142 . . . . 188 . . . . . . . . . . . . . . Parts Recycled . | . . . . . . . . . . . . . . . . . . . . . . . . . . . . . . . . . . . . . . . . . . . . Recycled Matter . | . . . . . . . . . . . . . . . . . . . . . . . . . . . . . . . . . . . . . . . . . . . . Retrieved Matter . | . . . . . . . . . . . . . . . . . . . . . . . . . . . . . . . . . . . . . . . . . . . . Retrieved Components . | . . . . . . . . . . . . . . . . . . . . . . . . . . . . . . . . . . . . . . . . . . . . Parts Scanalyzed 11 | . . . . . . . . . . 1 . . . . 3 . 4 . . . . 1 . 2 . . . . . . . . . . . . . . . . . . . Part Schematics Acquired 11 | . . . . . . . . . . 1 . . . . 3 . 4 . . . . 1 . 2 . . . . . . . . . . . . . . . . . . . Parts Damaged 2 | . . . . . . . . . . . . . . . 2 . . . . . . . . . . . . . . . . . . . . . . . . . . . . Bothacking | -11 -10 -10 -9 -9 -9 -8 -8 -7 -7 -7 -7 -7 -7 -6 -6 -6 -6 -6 -6 -6 -5 -5 -5 -5 -5 -5 -5 -4 -4 -4 -4 -4 -4 -4 -3 -3 -3 -2 -2 -2 -1 -1 -1 ------------ Run | Scr Mat Min Mat Min Exi Min Mat Fac Was Fac Low Low Zio Pro Fac Was Fac Low Low Dat Pro Fac Was Fac Upp Upp Zhi Pro Fac Was Fac Upp Upp War Pro Res Tes Res Qua Sec Acc Com Ac0 Used RIF Installer . | . . . . . . . . . . . . . . . . . . . . . . . . . . . . . . . . . . . . . . . . . . . . Robots Hacked 12 | . . . . . . . . 1 . 3 . . . 2 2 . . . . . . 3 . . . . . . 1 . . . . . . . . . . . . . . Non-combat 10 | . . . . . . . . 1 . 3 . . . . 2 . . . . . . 3 . . . . . . 1 . . . . . . . . . . . . . . Combat 2 | . . . . . . . . . . . . . . 2 . . . . . . . . . . . . . . . . . . . . . . . . . . . . . Robot Hacks Applied 14 | . . . . . . . . 1 . 5 . . . 2 2 . . . . . . 3 . . . . . . 1 . . . . . . . . . . . . . . parse_system 3 | . . . . . . . . . . 1 . . . 2 . . . . . . . . . . . . . . . . . . . . . . . . . . . . . no_distress 5 | . . . . . . . . . . 3 . . . . 1 . . . . . . 1 . . . . . . . . . . . . . . . . . . . . . find_chute 5 | . . . . . . . . 1 . . . . . . 1 . . . . . . 2 . . . . . . 1 . . . . . . . . . . . . . . find_fabricator 1 | . . . . . . . . . . 1 . . . . . . . . . . . . . . . . . . . . . . . . . . . . . . . . . Relay Couplers Released . | . . . . . . . . . . . . . . . . . . . . . . . . . . . . . . . . . . . . . . . . . . . . Robots Rewired 1 | . . . . . . . . . . . . . . . . . . . . . . . . . . . . . 1 . . . . . . . . . . . . . . Allies Hacked 5 | . . . . . . . . . . 1 . . . . . . . . . . . . . . . . . . 1 . . . . . . . . . . . . 3 . Hacks Repelled 1 | . . . . . . . . . . . . . . . . . . . . . . . . . . . . . . . . . . . . . . . . . . 1 . Allies | -11 -10 -10 -9 -9 -9 -8 -8 -7 -7 -7 -7 -7 -7 -6 -6 -6 -6 -6 -6 -6 -5 -5 -5 -5 -5 -5 -5 -4 -4 -4 -4 -4 -4 -4 -3 -3 -3 -2 -2 -2 -1 -1 -1 -------- Run | Scr Mat Min Mat Min Exi Min Mat Fac Was Fac Low Low Zio Pro Fac Was Fac Low Low Dat Pro Fac Was Fac Upp Upp Zhi Pro Fac Was Fac Upp Upp War Pro Res Tes Res Qua Sec Acc Com Ac0 Total Allies 147 | . . . . 2 . . . 2 19 2 . . 2 . 3 18 3 . . . 1 2 . 1 . . . . 6 20 1 . . . . 1 . . 1 3 . 60 . Largest Group 27 | . . . . 2 . . . 2 19 1 . . 2 2 2 18 1 . . . 1 2 1 1 . . . . 4 20 1 . . . . 1 . . 1 1 1 27 . Highest-Rated Group 1453 | . . . . 47 . . . 36 477 26 . . 188 188 52 650 26 . . . 94 52 26 26 . . . . 183 730 26 . . . . 26 . . 10 44 44 1453 . Highest-Rated Ally 94 | . . . . 31 . . . 26 35 26 . . 94 94 26 50 26 . . . 94 26 26 26 . . . . 47 50 26 . . . . 26 . . 10 44 44 90 . Total Orders 2 | . . . . . . . . . . . . . . . . . . . . . . . . . . . . . . . 1 . . . . . . . 1 . . . . STAY 2 | . . . . . . . . . . . . . . . . . . . . . . . . . . . . . . . 1 . . . . . . . 1 . . . . Ally Attacks 753 | . . . . 7 . . . . 120 . . . . 46 . 103 . . . . 13 . . . . . . . 26 . . . . . . . . . . . . 438 . Total Damage 28705 | . . . . 124 . . . . 4802 . . . . 1167 . 6149 . . . . 388 . . . . . . . 535 . . . . . . . . . . . . 15540 . Kills 113 | . . . . 3 . . . . 14 . . . . 9 . 19 . . . . 4 . . . . . . . 3 . . . . . . . . . . . . 61 . Allies Corrupted 4 | . . . . . . . . . . . . . . . . . . . . . . . . . . . . . 1 . . . . . . . . . . . . 3 . Allies Melted . | . . . . . . . . . . . . . . . . . . . . . . . . . . . . . . . . . . . . . . . . . . . . Intel | -11 -10 -10 -9 -9 -9 -8 -8 -7 -7 -7 -7 -7 -7 -6 -6 -6 -6 -6 -6 -6 -5 -5 -5 -5 -5 -5 -5 -4 -4 -4 -4 -4 -4 -4 -3 -3 -3 -2 -2 -2 -1 -1 -1 ------- Run | Scr Mat Min Mat Min Exi Min Mat Fac Was Fac Low Low Zio Pro Fac Was Fac Low Low Dat Pro Fac Was Fac Upp Upp Zhi Pro Fac Was Fac Upp Upp War Pro Res Tes Res Qua Sec Acc Com Ac0 Robot Analysis Total 6 | . 1 . . . . . . . . . . . . . . . . . . . . . . . . . 4 . . . . . . . . 1 . . . . . . . Derelict Logs Recovered 15 | . . 1 . 2 . . . . . . 1 3 1 . . . . . 1 . . . . . 1 . . 1 . . . 2 2 . . . . . . . . . . Drone Launches 1 | . . . . . . . . . . . . . . . . . . . . . . . . . . . . . . . . . . 1 . . . . . . . . . Drone Recoveries . | . . . . . . . . . . . . . . . . . . . . . . . . . . . . . . . . . . . . . . . . . . . . Exploration | -11 -10 -10 -9 -9 -9 -8 -8 -7 -7 -7 -7 -7 -7 -6 -6 -6 -6 -6 -6 -6 -5 -5 -5 -5 -5 -5 -5 -4 -4 -4 -4 -4 -4 -4 -3 -3 -3 -2 -2 -2 -1 -1 -1 ------------- Run | Scr Mat Min Mat Min Exi Min Mat Fac Was Fac Low Low Zio Pro Fac Was Fac Low Low Dat Pro Fac Was Fac Upp Upp Zhi Pro Fac Was Fac Upp Upp War Pro Res Tes Res Qua Sec Acc Com Ac0 Turns Passed 24203 | 65 1020 335 2079 618 590 266 2311 508 157 1402 382 213 471 310 1175 193 700 121 330 22 180 1158 177 1129 121 144 95 101 1201 108 838 249 52 302 204 725 467 421 360 1071 556 560 716 Spaces Moved 40894 | 46 752 316 1221 333 362 143 988 1066 313 3314 940 691 1031 445 2102 407 1702 327 673 76 530 2414 362 2492 424 371 232 346 3257 352 1456 592 224 708 586 1104 797 863 765 2004 1076 1204 1487 Core 24 | 22 2 . . . . . . . . . . . . . . . . . . . . . . . . . . . . . . . . . . . . . . . . . . Treads 2363 | . . . 537 333 362 143 988 . . . . . . . . . . . . . . . . . . . . . . . . . . . . . . . . . . . . Legs . | . . . . . . . . . . . . . . . . . . . . . . . . . . . . . . . . . . . . . . . . . . . . Wheels 1774 | 24 750 316 684 . . . . . . . . . . . . . . . . . . . . . . . . . . . . . . . . . . . . . . . . Hover . | . . . . . . . . . . . . . . . . . . . . . . . . . . . . . . . . . . . . . . . . . . . . Flight 36733 | . . . . . . . . 1066 313 3314 940 691 1031 445 2102 407 1702 327 673 76 530 2414 362 2492 424 371 232 346 3257 352 1456 592 224 708 586 1104 797 863 765 2004 1076 1204 1487 Fastest Speed 15 | 50 80 100 90 160 155 175 173 29 29 29 29 29 29 29 29 29 29 29 29 29 29 21 21 23 21 23 23 15 23 23 23 23 23 23 23 24 24 24 24 20 17 23 17 Average Speed 37 | 72 96 100 123 160 161 175 175 29 29 29 29 29 29 29 29 29 29 29 29 29 29 28 23 23 22 23 23 23 23 23 23 23 23 23 23 24 24 24 24 23 23 23 22 Slowest Speed 350 | 100 350 100 180 160 175 175 205 29 29 29 29 29 29 29 29 29 29 29 29 29 29 29 25 25 23 23 25 25 29 23 23 23 23 23 23 24 27 27 24 24 24 24 23 Overloaded Moves 81 | . . . . . . . . . . . . . . . . . . . . . . . . . 8 . . 23 . . . . . . . . . . . 7 20 . 23 Propulsion Burnouts . | . . . . . . . . . . . . . . . . . . . . . . . . . . . . . . . . . . . . . . . . . . . . Robots Hopped 70 | . . . . . . . . 1 . 9 . . . . 7 . 3 . 1 . . 6 2 4 . . . . 13 . 2 . . 2 . 3 1 . 1 1 6 . 8 Cave-ins Triggered . | . . . . . . . . . . . . . . . . . . . . . . . . . . . . . . . . . . . . . . . . . . . . Teleports 2 | . . . . . . . . . . . . . . . . . . . . . . . . . . . . . . . . . . . . . . . . . . 1 1 Exploration Rate (%) 63 | 4 98 86 94 69 73 46 94 35 93 71 70 84 83 48 47 95 56 65 60 68 70 49 94 64 61 52 62 56 48 89 31 64 49 91 76 25 68 25 73 79 23 42 50 Regions Visited 43 Branch Regions 25 Pre-discovered Areas 12 | . . 1 . 1 1 . . . . . . . 3 . . . . . 1 1 . . . . . . 3 . . . . 1 . . . . . . . . . . . Known Exits Taken 30 | . 1 . 1 . . . 1 . . 1 1 1 1 1 . . 1 1 1 1 1 . . 1 1 1 1 1 . . 1 1 1 1 1 1 1 1 1 1 1 1 . Unknown Exits Taken 5 | 1 . 1 . 1 1 1 . . . . . . . . . . . . . . . . . . . . . . . . . . . . . . . . . . . . . Scrap Searched 37 | . . 2 . 2 . 3 . . . . 3 3 2 2 . . . 1 1 . 2 . . . 2 2 . 1 . . . 4 3 . 4 . . . . . . . . Spaces Dug 705 | . . . . . . . 2 28 . 67 34 3 . . 61 . 75 10 17 . 6 65 . 61 4 2 . 3 57 . 47 8 . 3 7 32 24 5 16 29 31 6 2 Terrain Destroyed 2187 | . 3 8 29 43 . . 68 28 . 67 34 3 . . 61 . 155 10 72 . 33 69 . 61 30 72 . 80 57 . 47 73 . 3 58 66 24 5 16 36 33 18 825 Melee 701 | . . . . . . . 2 28 . 67 34 3 . . 61 . 75 10 17 . 6 65 . 61 4 2 . 3 57 . 47 8 . 3 7 32 24 5 16 28 31 4 1 Projectile 174 | . . . . . . . . . . . . . . . . . . . . . . . . . . . . . . . . . . . . . . . . 8 2 14 150 AOE 1312 | . 3 8 29 43 . . 66 . . . . . . . . . 80 . 55 . 27 4 . . 26 70 . 77 . . . 65 . . 51 34 . . . . . . 674 Actions | -11 -10 -10 -9 -9 -9 -8 -8 -7 -7 -7 -7 -7 -7 -6 -6 -6 -6 -6 -6 -6 -5 -5 -5 -5 -5 -5 -5 -4 -4 -4 -4 -4 -4 -4 -3 -3 -3 -2 -2 -2 -1 -1 -1 --------- Run | Scr Mat Min Mat Min Exi Min Mat Fac Was Fac Low Low Zio Pro Fac Was Fac Low Low Dat Pro Fac Was Fac Upp Upp Zhi Pro Fac Was Fac Upp Upp War Pro Res Tes Res Qua Sec Acc Com Ac0 Total 47639 | 64 921 329 1556 372 370 155 1359 1226 378 3618 986 698 1203 615 2585 481 1828 339 781 75 551 2787 417 2972 443 417 265 358 3581 370 1834 671 223 840 636 1490 1017 1049 889 2456 1285 1417 1732 Wait 4231 | . 50 6 95 12 . 11 216 92 65 213 . . 162 144 342 74 35 . 55 . 10 236 19 361 10 21 . 5 204 5 282 50 . 93 38 323 143 154 83 284 147 112 79 Move 40718 | 45 751 315 1220 332 361 142 987 1064 312 3295 939 690 1030 444 2088 406 1695 326 670 75 529 2402 357 2483 423 370 231 345 3231 351 1451 591 223 704 585 1097 794 862 762 2001 1065 1203 1471 Hop 66 | . . . . . . . . 1 . 9 . . . . 7 . 3 . 1 . . 6 2 4 . . . . 13 . 2 . . 1 . 3 1 . 1 1 4 . 7 Pick Up 261 | 6 25 1 42 1 3 . 16 1 1 4 . . 6 13 10 1 4 . 9 . . 12 2 12 2 3 6 . 7 1 3 . . 12 . 4 10 4 5 15 4 12 4 Fast Attach 78 | 3 3 . 5 . . . 1 2 . 1 . 3 1 . 3 . . . . . . 1 . 2 . 3 5 . 4 1 . . . 2 . 4 7 4 1 10 . 3 9 Attach 144 | 4 3 1 14 1 . . 13 13 . . . . 1 . 3 . . . 1 . . 4 . 3 . 1 1 . 9 1 . . . 2 . 3 1 2 1 21 9 14 18 Detach 34 | . . . 1 . . . . . . . . . 1 . 1 . . . 1 . . 2 . . . . 1 . 1 . . . . . . . . . . 10 4 5 7 Swap 143 | . 4 3 18 2 2 . 9 . . 2 4 . . 2 1 . 1 . 2 . . 1 3 7 . 4 4 1 1 1 3 4 . 10 . . 3 . 1 23 4 16 7 Drop 253 | . 12 . 34 . 4 . 8 21 . 5 . 2 2 1 10 . 7 . 7 . 3 6 2 12 2 5 9 . 6 2 2 . . 13 . 6 20 6 8 15 4 13 6 Fire 635 | 6 73 3 127 24 . 2 107 . . . 9 . . . . . . . 5 . . . 25 . . 3 . 4 . 8 31 18 . . 4 9 . . . 20 3 35 119 Melee 955 | . . . . . . . 2 32 . 89 34 3 . 10 80 . 79 13 23 . 6 98 7 66 4 7 8 3 82 . 60 8 . 3 9 41 38 17 27 56 41 4 5 Ram . | . . . . . . . . . . . . . . . . . . . . . . . . . . . . . . . . . . . . . . . . . . . . Kick . | . . . . . . . . . . . . . . . . . . . . . . . . . . . . . . . . . . . . . . . . . . . . Crush . | . . . . . . . . . . . . . . . . . . . . . . . . . . . . . . . . . . . . . . . . . . . . Escape Stasis 98 | . . . . . . . . . . . . . . . 36 . . . . . . 18 . 22 . . . . 22 . . . . . . . . . . . . . . Rewire . | . . . . . . . . . . . . . . . . . . . . . . . . . . . . . . . . . . . . . . . . . . . . Trap 23 | . . . . . . . . . . . . . . 1 4 . 4 . 7 . 3 1 . . 2 . . . 1 . . . . . . . . . . . . . . Miscellaneous . | . . . . . . . . . . . . . . . . . . . . . . . . . . . . . . . . . . . . . . . . . . . . Route ------- -11/Scrapyard -10/Materials (discovered 4 exits: *Mat x3 / *Min) -10/Mines -9/Materials (discovered 4 exits: *Mat x3 / *Min) -9/Mines (discovered 3 exits: *Mat x2 / *Exi) -9/Exiles -8/Mines -8/Materials (discovered 3 exits: *Fac x3) -7/Factory (discovered 2 exits: *Sto / *Low) -7/Waste -7/Factory (discovered 8 exits: *Fac x4 / *Sto x2 / *Low x2) -7/Lower Caves -7/Lower Caves (discovered 2 exits: *Fac / *Zio) -7/Zion -6/Proximity Caves -6/Factory (discovered 3 exits: *Fac / *Low x2) -6/Waste -6/Factory (discovered 4 exits: *Fac x2 / *Low x2) -6/Lower Caves -6/Lower Caves -6/Data Miner -5/Proximity Caves -5/Factory (discovered 4 exits: *Fac x2 / *Upp x2) -5/Waste -5/Factory (discovered 6 exits: *Fac x4 / *Upp x2) -5/Upper Caves -5/Upper Caves (discovered 2 exits: *Fac / *Zhi) -5/Zhirov -4/Proximity Caves -4/Factory (discovered 2 exits: Res / *Ext) -4/Waste -4/Factory (discovered 6 exits: *Res / *Upp x2 / *Ext x2 / Arm) -4/Upper Caves -4/Upper Caves (discovered 2 exits: *Res / *War) -4/Warlord -3/Proximity Caves -3/Research (discovered 3 exits: Res / *Tes x2) -3/Testing -2/Research -2/Quarantine (discovered 2 exits: *Acc / *Sec) -2/Section 7 -1/Access (discovered 2 exits: Sur / *Com) -1/Command (discovered 2 exits: *Sur / *Ac0) -1/Access_0 Near Former Tau Ceti IV History --------- Turn | Location | Event 6 | -11/Scrapyard | Discovered new exit (range 16) 66 | -11/Scrapyard | Entered Materials 312 | -10/Materials | Build established: Mutant 378 | -10/Materials | Discovered new exit (range 14) 470 | -10/Materials | Discovered new exit (range 16) 556 | -10/Materials | Discovered new exit (range 10) 768 | -10/Materials | Identified exit to Mines 843 | -10/Materials | Discovered new exit (range 16) 1086 | -10/Materials | Entered Mines 1320 | -10/Mines | Met a Derelict shopkeep closing up shop 1415 | -10/Mines | Learned Materials garrison access intel 1416 | -10/Mines | Discovered new exit (range 5) 1417 | -10/Mines | Learned location of Storage (-7) 1421 | -10/Mines | Entered Materials 1421 | -9/Materials | Evolved 2 slots: Propulsion x1, Utility x1 1721 | -9/Materials | Build established: Hauler-Mutant 1883 | -9/Materials | Discovered new exit (range 4) 2075 | -9/Materials | Lost 3 parts (1n2w) 2214 | -9/Materials | Discovered new exit (range 15) 2372 | -9/Materials | Identified exit to Mines 2528 | -9/Materials | Core integrity fell below 50% 2697 | -9/Materials | Repaired Lgt. Angular Momentum Engine 3359 | -9/Materials | Discovered new exit (range 6) 3500 | -9/Materials | Entered Mines 3513 | -9/Mines | Assembled infested the area 3518 | -9/Mines | Assisted by a Guerilla fighting off Assembled 3598 | -9/Mines | Destroyed 8 combat bots 3694 | -9/Mines | Learned location of 1 exit from Materials 3694 | -9/Mines | Discovered new exit (range 7) 3889 | -9/Mines | Discovered new exit (range 12) 3958 | -9/Mines | Found a hidden stash of uninstalled traps 4031 | -9/Mines | Deemed a non-threat by the Exiles lab entrance 4031 | -9/Mines | Discovered new exit (range 5) 4118 | -9/Mines | Entered Exiles 4157 | -9/Exiles | Met 8R-AWN 4186 | -9/Exiles | Met EX-HEX 4227 | -9/Exiles | Met EX-BIN 4246 | -9/Exiles | Aligned with FarCom system 4248 | -9/Exiles | Given EX-Vault access code 4285 | -9/Exiles | Opened EX-Vault 4297 | -9/Exiles | Found Chronowheel 4305 | -9/Exiles | Found Lightpack 2.0 4338 | -9/Exiles | Warned to stay clear of 0b10 Research branches 4383 | -9/Exiles | Met EX-DEC 4391 | -9/Exiles | Learned location of Zion (-7) 4688 | -9/Exiles | Discovered new exit (range 14) 4708 | -9/Exiles | Stole two prototypes: Lightpack 2.0, Chronowheel 4708 | -9/Exiles | Entered Mines 4962 | -8/Mines | Discovered new exit (range 6) 4974 | -8/Mines | Entered Materials 4974 | -8/Materials | Evolved 2 slots: Utility x2 4975 | -8/Materials | Identified exit to Factory 4976 | -8/Materials | Loaded intel: 1 garrison access location 6253 | -8/Materials | Lost 4 parts (1p1n2w) 6994 | -8/Materials | Discovered exit to Factory (range 4) 7131 | -8/Materials | Discovered exit to Factory (range 10) 7285 | -8/Materials | Entered Factory 7285 | -7/Factory | Evolved 2 slots: Utility x2 7287 | -7/Factory | FarCom data flow suspended 7523 | -7/Factory | Discovered new exit (range 9) 7526 | -7/Factory | Identified exit to Lower Caves 7595 | -7/Factory | Build established: Hacker-Sprinter 7709 | -7/Factory | Discovered new exit (range 7) 7710 | -7/Factory | Identified exit to Storage 7733 | -7/Factory | Fabricated Lrn. Sensor Array? 7793 | -7/Factory | Sucked down chute 7793 | -7/Factory | Entered Waste 7796 | -7/Waste | Spotted C-40 Crusher 7802 | -7/Waste | Spotted C-40 Crusher 7806 | -7/Waste | Spotted C-40 Crusher 7807 | -7/Waste | Spotted C-40 Crusher 7834 | -7/Waste | Spotted C-40 Crusher 7838 | -7/Waste | Warlord forces began an assault 7849 | -7/Waste | Allies destroyed C-40 Crusher 7850 | -7/Waste | Allies destroyed C-40 Crusher 7851 | -7/Waste | Allies destroyed C-40 Crusher 7864 | -7/Waste | Spotted C-40 Crusher 7872 | -7/Waste | Allies destroyed C-40 Crusher 7883 | -7/Waste | Discovered new exit (range 12) 7950 | -7/Waste | Identified exit to Factory 7950 | -7/Waste | Entered Factory 8114 | -7/Factory | Discovered exit to Lower Caves (range 7) 8213 | -7/Factory | Repaired Broken Hyp. Coil Gun 8558 | -7/Factory | Discovered new exit (range 15) 8610 | -7/Factory | Identified exit to Factory 8645 | -7/Factory | Discovered exit to Factory (range 11) 8950 | -7/Factory | Fabricated Exp. Sensor Array (x1) 8950 | -7/Factory | Local fabrication network quarantined 8968 | -7/Factory | Fabricated Exp. Signal Interpreter? 9033 | -7/Factory | Discovered exit to Factory (range 8) 9090 | -7/Factory | Discovered exit to Factory (range 4) 9352 | -7/Factory | Entered Lower Caves 9438 | -7/Lower Caves | Spotted B-75 Beast 9466 | -7/Lower Caves | Encountered a Warlord checkpoint 9501 | -7/Lower Caves | Learned location of 1 exit from Factory 9732 | -7/Lower Caves | Discovered new exit (range 6) 9734 | -7/Lower Caves | Identified exit to Lower Caves 9734 | -7/Lower Caves | Entered another Lower Caves area 9741 | -7/Lower Caves | Discovered exit to Factory (range 7) 9745 | -7/Lower Caves | Learned 4 Factory zone layouts 9790 | -7/Lower Caves | Identified exit to Zion 9823 | -7/Lower Caves | Learned Factory stockpile data 9854 | -7/Lower Caves | Found Alien Artifact 9854 | -7/Lower Caves | Identified Core Expander 9854 | -7/Lower Caves | Installed Core Expander, added new Utility slot 9879 | -7/Lower Caves | Encountered a Warlord checkpoint 9947 | -7/Lower Caves | Entered Zion 9961 | -7/Zion | Given A8's code to call for help 9973 | -7/Zion | Discovered new exit (range 15) 10001 | -7/Zion | Learned location of Data Miner (-6) 10026 | -7/Zion | Learned Factory emergency access door positions 10044 | -7/Zion | Found Prototype Processor 10045 | -7/Zion | Found Prototype Hackware 10047 | -7/Zion | Found Prototype Processor 10060 | -7/Zion | Learned location of Recycling (-7) 10131 | -7/Zion | Learned Factory repair station intel 10156 | -7/Zion | Found Prototype Processor 10162 | -7/Zion | Found Exp. Signal Interpreter 10249 | -7/Zion | Enhanced Grunt warped into view, answering call for help 10250 | -7/Zion | Enhanced Grunt warped into view, answering call for help 10357 | -7/Zion | Identified exit to Proximity Caves 10418 | -7/Zion | Entered Proximity Caves 10418 | -6/Proximity Caves | Accompanied by 2 allies 10725 | -6/Proximity Caves | Discovered exit to Factory (range 9) 10728 | -6/Proximity Caves | Entered Factory 10728 | -6/Factory | Evolved 2 slots: Utility x2 10729 | -6/Factory | Identified exit to Factory 10730 | -6/Factory | Identified exit to Lower Caves 10733 | -6/Factory | Loaded intel: 6 repair station locations 10765 | -6/Factory | Discovered exit to Lower Caves (range 4) 10979 | -6/Factory | Identified Exp. System Shield 11239 | -6/Factory | Identified Exp. Armor Integrity Analyzer 11239 | -6/Factory | Identified Exp. Core Analyzer 11239 | -6/Factory | Identified Exp. Targeting Computer 11424 | -6/Factory | Fabricated Exp. System Shield? 11524 | -6/Factory | Fabricated Exp. System Shield? 11527 | -6/Factory | Build established: Wizard-Sprinter 11881 | -6/Factory | Fabricated Exp. Armor Integrity Analyzer (x1) 11903 | -6/Factory | Manually triggered Chute Trap 11903 | -6/Factory | Sucked down chute 11903 | -6/Factory | Entered Waste 11912 | -6/Waste | Warlord forces began an assault 11941 | -6/Waste | Spotted C-40 Crusher 11943 | -6/Waste | Allies destroyed C-40 Crusher 11993 | -6/Waste | Spotted C-40 Crusher 12004 | -6/Waste | Spotted C-40 Crusher 12006 | -6/Waste | Allies destroyed C-40 Crusher 12011 | -6/Waste | Allies destroyed C-40 Crusher 12017 | -6/Waste | Spotted C-40 Crusher 12027 | -6/Waste | Allies destroyed C-40 Crusher 12055 | -6/Waste | Discovered new exit (range 13) 12096 | -6/Waste | Identified exit to Factory 12096 | -6/Waste | Entered Factory 12363 | -6/Factory | Discovered exit to Factory (range 16) 12395 | -6/Factory | Spotted B-75 Beast 12540 | -6/Factory | Discovered exit to Factory (range 4) 12652 | -6/Factory | Repaired Broken Imp. Overload Amplifier? 12796 | -6/Factory | Entered Lower Caves 12884 | -6/Lower Caves | Encountered a Warlord checkpoint 12892 | -6/Lower Caves | Discovered new exit (range 13) 12896 | -6/Lower Caves | Identified exit to Lower Caves 12917 | -6/Lower Caves | Entered another Lower Caves area 13225 | -6/Lower Caves | Discovered new exit (range 11) 13228 | -6/Lower Caves | Identified exit to Data Miner 13247 | -6/Lower Caves | Entered Data Miner 13247 | -6/Data Miner | Discovered new exit (range 6) 13253 | -6/Data Miner | Met Data Miner 13258 | -6/Data Miner | Learned location of Section 7 (-2) 13258 | -6/Data Miner | Acquired the access code to Warlord's prototype stash 13263 | -6/Data Miner | Received God Mode back door access code from Data Miner 13269 | -6/Data Miner | Identified exit to Proximity Caves 13269 | -6/Data Miner | Entered Proximity Caves 13273 | -5/Proximity Caves | Escorted by Enhanced Grunt 13352 | -5/Proximity Caves | Spotted NA-QKQ(f) 13353 | -5/Proximity Caves | Encountered a Master Thief 13400 | -5/Proximity Caves | Allies destroyed NA-QKQ(f) 13434 | -5/Proximity Caves | Discovered exit to Factory (range 2) 13449 | -5/Proximity Caves | Entered Factory 13449 | -5/Factory | Evolved 2 slots: Propulsion x1, Utility x1 13701 | -5/Factory | Fabricated Mni. Smartbomb Launcher (x1) 13701 | -5/Factory | Fabricated Plasma Sword? 13759 | -5/Factory | Discovered new exit (range 5) 13761 | -5/Factory | Identified exit to Upper Caves 13817 | -5/Factory | Discovered exit to Upper Caves (range 14) 13987 | -5/Factory | Discovered new exit (range 13) 14094 | -5/Factory | Fabricated Exp. Cesium-ion Thruster (x1) 14103 | -5/Factory | Discovered new exit (range 9) 14487 | -5/Factory | Central database locked down 14545 | -5/Factory | Fabricated Exp. Cesium-ion Thruster? 14607 | -5/Factory | Manually triggered Chute Trap 14607 | -5/Factory | Sucked down chute 14607 | -5/Factory | Entered Waste 14607 | -5/Waste | The area was eerily silent 14615 | -5/Waste | 1 allies followed down the chute 14703 | -5/Waste | Discovered new exit (range 12) 14779 | -5/Waste | Identified exit to Factory 14784 | -5/Waste | Entered Factory 14784 | -5/Factory | Accompanied by 1 ally 14937 | -5/Factory | Fabricated Mni. Fusion Reactor (x1) 14969 | -5/Factory | Fabricated Mni. Fusion Reactor (x1) 14988 | -5/Factory | Fabricated Adv. Hacking Suite (x1) 15038 | -5/Factory | Repaired Broken Hyp. Railgun 15177 | -5/Factory | Repaired Broken Adv. Weapon Cycler 15222 | -5/Factory | Discovered new exit (range 7) 15223 | -5/Factory | Identified exit to Factory 15353 | -5/Factory | Discovered exit to Factory (range 8) 15392 | -5/Factory | Local fabrication network quarantined 15604 | -5/Factory | Discovered exit to Factory (range 3) 15799 | -5/Factory | Discovered exit to Factory (range 14) 15913 | -5/Factory | Entered Upper Caves 15915 | -5/Upper Caves | Attracted the attention of an 0b10 checkpoint 15946 | -5/Upper Caves | Spotted HT-BMR(f) 15947 | -5/Upper Caves | Encountered a Master Thief 16008 | -5/Upper Caves | Destroyed HT-BMR(f) 16025 | -5/Upper Caves | Discovered new exit (range 15) 16033 | -5/Upper Caves | Identified exit to Upper Caves 16034 | -5/Upper Caves | Entered another Upper Caves area 16045 | -5/Upper Caves | Discovered exit to Factory (range 10) 16046 | -5/Upper Caves | Encountered a Warlord checkpoint 16176 | -5/Upper Caves | Discovered new exit (range 13) 16178 | -5/Upper Caves | Identified exit to Zhirov 16178 | -5/Upper Caves | Entered Zhirov 16178 | -5/Zhirov | Discovered new exit (range 3) 16183 | -5/Zhirov | Met Zhirov 16187 | -5/Zhirov | Learned location of Quarantine (-2) 16187 | -5/Zhirov | Learned location of Testing (-3) 16187 | -5/Zhirov | Learned location of Command (-1) 16189 | -5/Zhirov | Zhirov requested help retrieving the SGEMP Prototype 16193 | -5/Zhirov | Found Alien Artifact 16193 | -5/Zhirov | Identified Integrated Reactor 16193 | -5/Zhirov | Installed Integrated Reactor, increased core energy generation (+10) 16217 | -5/Zhirov | Found Alien Artifact 16273 | -5/Zhirov | Identified exit to Proximity Caves 16273 | -5/Zhirov | Entered Proximity Caves 16325 | -4/Proximity Caves | Learned Research terminal intel 16352 | -4/Proximity Caves | Attracted the attention of an 0b10 outpost 16372 | -4/Proximity Caves | Discovered exit to Factory (range 9) 16374 | -4/Proximity Caves | Entered Factory 16374 | -4/Factory | Evolved 2 slots: Utility x2 16392 | -4/Factory | Lost 3 parts (1n2u) 16393 | -4/Factory | Allied Derelicts emerged from ambush trap array 16516 | -4/Factory | Garrison activated, responded to threat 16577 | -4/Factory | Fabricated Cld. Proton Cannon? 16587 | -4/Factory | Fabricated Exp. Utility Shielding (x1) 16668 | -4/Factory | Local fabrication network quarantined 16698 | -4/Factory | Spotted B-86 Titan 16722 | -4/Factory | Discovered new exit (range 6) 16779 | -4/Factory | Identified Transdimensional Reconstructor 16820 | -4/Factory | Repaired Exp. Cesium-ion Thruster 16921 | -4/Factory | Repaired Mni. Fusion Reactor 17226 | -4/Factory | Discovered new exit (range 14) 17575 | -4/Factory | Manually triggered Chute Trap 17575 | -4/Factory | Sucked down chute 17575 | -4/Factory | Entered Waste 17576 | -4/Waste | Joined by Warlord forces that had cleared the area 17603 | -4/Waste | Discovered new exit (range 15) 17683 | -4/Waste | Identified exit to Factory 17683 | -4/Waste | Entered Factory 17683 | -4/Factory | Spotted B-86 Titan 17769 | -4/Factory | Identified exit to Upper Caves 17769 | -4/Factory | Identified exit to Extension 17769 | -4/Factory | Identified exit to Armory 18066 | -4/Factory | Discovered new exit (range 15) 18087 | -4/Factory | Local fabrication network quarantined 18155 | -4/Factory | Fabricated Exp. Weapon Shielding? 18183 | -4/Factory | First assault squad dispatched 18186 | -4/Factory | Fabricated Exp. Transmission Jammer? 18521 | -4/Factory | Entered Upper Caves 18607 | -4/Upper Caves | Discovered new exit (range 15) 18667 | -4/Upper Caves | Learned Research non-interactive machine intel 18769 | -4/Upper Caves | Identified exit to Upper Caves 18770 | -4/Upper Caves | Entered another Upper Caves area 18770 | -4/Upper Caves | Discovered new exit (range 11) 18771 | -4/Upper Caves | Identified exit to Warlord 18774 | -4/Upper Caves | Identified exit to Research 18775 | -4/Upper Caves | Encountered a Warlord checkpoint 18812 | -4/Upper Caves | Learned location of 1 exit from Research 18822 | -4/Upper Caves | Entered Warlord 18831 | -4/Warlord | System corruption cleaned by Quarantine Array 18851 | -4/Warlord | Found Prototype Device 18853 | -4/Warlord | Found Prototype Device 18856 | -4/Warlord | Identified Minesniffer Drone Bay (x2) 18873 | -4/Warlord | Met Warlord 18877 | -4/Warlord | Opened Warlord's prototype stash 18895 | -4/Warlord | Found Prototype Hackware 18895 | -4/Warlord | Identified Ghost Barrier 18898 | -4/Warlord | Warlord's base attacked by MAIN.C 18899 | -4/Warlord | Found Prototype Device 18921 | -4/Warlord | Found Prototype Energy Gun 18923 | -4/Warlord | Identified Exp. Focal Shield 18926 | -4/Warlord | Identified Vortex Rifle 18930 | -4/Warlord | Found Vortex Rifle 18935 | -4/Warlord | Found Prototype Energy Gun 18936 | -4/Warlord | Identified Vortex Shotgun 18937 | -4/Warlord | Found Prototype Energy Cannon 18938 | -4/Warlord | Identified Vortex Driver 18942 | -4/Warlord | Found Vortex Driver 19118 | -4/Warlord | Opened side exit 19122 | -4/Warlord | Discovered new exit (range 11) 19124 | -4/Warlord | Identified exit to Proximity Caves 19124 | -4/Warlord | Entered Proximity Caves 19313 | -3/Proximity Caves | Discovered exit to Research (range 11) 19328 | -3/Proximity Caves | Entered Research 19328 | -3/Research | Evolved 2 slots: Propulsion x1, Utility x1 19329 | -3/Research | Identified exit to Testing 19330 | -3/Research | Identified exit to Research 19331 | -3/Research | Loaded intel: 62 non-interactive machine locations 19332 | -3/Research | Loaded intel: 18 terminal locations 19536 | -3/Research | Fabricated Exp. Targeting Computer (x1) 19592 | -3/Research | Fabricated Exp. Force Field (x1) 19732 | -3/Research | Local fabrication network quarantined 20053 | -3/Research | Entered Testing 20088 | -3/Testing | Found Prototype Energy Cannon 20088 | -3/Testing | Identified Cld. Nova Cannon 20102 | -3/Testing | Found Prototype Energy Cannon 20102 | -3/Testing | Identified Hpw. Disruptor Cannon 20149 | -3/Testing | Found Prototype Protection 20185 | -3/Testing | Found Prototype Energy Cannon 20189 | -3/Testing | Identified SHELL Armor 20233 | -3/Testing | Identified Potential Cannon 20292 | -3/Testing | Found Prototype Energy Gun 20292 | -3/Testing | Identified Tachyon Dispersion Ray 20324 | -3/Testing | Found Prototype Processor 20385 | -3/Testing | Identified Spectral Analyzer 20472 | -3/Testing | Fabricated Exp. Sensor Array (x1) 20513 | -3/Testing | Fabricated Coolant Network (x1) 20520 | -3/Testing | Entered Research 20520 | -2/Research | Warlord forces began assault on 0b10 20520 | -2/Research | Evolved 2 slots: Power x1, Propulsion x1 20582 | -2/Research | Fabricated Particle Accelerator (x1) 20605 | -2/Research | Borebot progress halted 20621 | -2/Research | Fabricated Exp. Targeting Computer (x1) 20627 | -2/Research | Borebot progress halted 20630 | -2/Research | Research machine network offline 20637 | -2/Research | Met up with Warlord 20830 | -2/Research | Discovered new exit (range 15) 20941 | -2/Research | Identified exit to Quarantine 20941 | -2/Research | Entered Quarantine 20946 | -2/Quarantine | Found Alien Slashing Weapon 20946 | -2/Quarantine | Identified Sigix Broadsword 21109 | -2/Quarantine | Found Alien Artifact 21126 | -2/Quarantine | Found Alien Artifact 21174 | -2/Quarantine | Discovered new exit (range 14) 21209 | -2/Quarantine | Identified Subatomic Replicator 21209 | -2/Quarantine | Identified Stasis Generator 21228 | -2/Quarantine | Spotted Alpha 7 21236 | -2/Quarantine | Found Alien Launcher 21272 | -2/Quarantine | Spotted Fortress 21288 | -2/Quarantine | Discovered new exit (range 5) 21289 | -2/Quarantine | Identified exit to Section 7 21301 | -2/Quarantine | Entered Section 7 21309 | -2/Section 7 | Found Alien Artifact 21333 | -2/Section 7 | Found Alien Artifact 21334 | -2/Section 7 | Identified Integrity Redistributor (x2) 21334 | -2/Section 7 | Used Integrity Redistributor, redistributed integrity from core (-27) 21421 | -2/Section 7 | Spotted B-90 Cyclops 21459 | -2/Section 7 | Spotted Alpha 7 21483 | -2/Section 7 | Identified exit to Access 21529 | -2/Section 7 | Spotted B-99 Colossus 21541 | -2/Section 7 | Found Alien Artifact 21542 | -2/Section 7 | Identified Integrated Dissipator 21542 | -2/Section 7 | Installed Integrated Dissipator, increased core heat dissipation (+20) 21552 | -2/Section 7 | Found Alien Artifact 21554 | -2/Section 7 | Identified LRC Boosters 21554 | -2/Section 7 | Installed LRC Boosters, increased mass support (+10) 21556 | -2/Section 7 | Used Subatomic Replicator to replicate LRC Boosters 21557 | -2/Section 7 | Found LRC Boosters 21557 | -2/Section 7 | Installed LRC Boosters, increased mass support (+10) 21559 | -2/Section 7 | Installed LRC Boosters, increased mass support (+10) 21629 | -2/Section 7 | Found Integrity Redistributor 21630 | -2/Section 7 | Found Integrity Redistributor 21631 | -2/Section 7 | Found Integrity Redistributor 21738 | -2/Section 7 | Identified Sigix Terminator 21847 | -2/Section 7 | Found Alien Energy Gun 21849 | -2/Section 7 | Found Alien Energy Gun 21852 | -2/Section 7 | Found Alien Energy Gun 21869 | -2/Section 7 | Used Integrity Redistributor, redistributed integrity from core (-22) 21873 | -2/Section 7 | Found Transdimensional Reconstructor 21989 | -2/Section 7 | Found Integrated Reactor 21989 | -2/Section 7 | Installed Integrated Reactor, increased core energy generation (+10) 22027 | -2/Section 7 | Spotted S7 Guard 22032 | -2/Section 7 | Found Alien Artifact 22035 | -2/Section 7 | Identified Core Regenerator 22035 | -2/Section 7 | Used Core Regenerator, restored core integrity (+49) 22145 | -2/Section 7 | Identified Sigix Quantum Sheargun (x3) 22372 | -2/Section 7 | Entered Access 22372 | -1/Access | Accompanied by 1 ally 22372 | -1/Access | Evolved 2 slots: Utility x2 22379 | -1/Access | Identified exit to Surface 22417 | -1/Access | Identified exit to Command 22853 | -1/Access | Fabricated Cld. Q-thruster (x1) 22903 | -1/Access | Fabricated Cld. Q-thruster (x1) 22928 | -1/Access | Entered Command 22955 | -1/Command | Disengaged cave seal 22984 | -1/Command | Disengaged cave seal 23017 | -1/Command | Spotted M Guard 23017 | -1/Command | Spotted M Guard 23020 | -1/Command | Spotted Combat Programmer 23032 | -1/Command | Spotted Combat Programmer 23043 | -1/Command | Destroyed Combat Programmer 23047 | -1/Command | Allies destroyed Combat Programmer 23056 | -1/Command | Destroyed M Guard 23059 | -1/Command | Destroyed M Guard 23059 | -1/Command | Destroyed all MAIN.C guards 23063 | -1/Command | Found Cld. Nova Cannon 23065 | -1/Command | Found Zero-point Reactor 23066 | -1/Command | Found Zero-point Reactor 23067 | -1/Command | Found Prototype Device 23068 | -1/Command | Identified AEGIS Remote Shield 23136 | -1/Command | Met MAIN.C 23150 | -1/Command | Allies destroyed MAIN.C Shell 23150 | -1/Command | 0b10 Conduit disabled 23150 | -1/Command | MAIN.C activated Command garrisons 23167 | -1/Command | Destroyed MAIN.C 23172 | -1/Command | Found Zero-point Reactor 23174 | -1/Command | Found Prototype Protection 23199 | -1/Command | Discovered exit to Surface (range 7) 23286 | -1/Command | Build established: Machinist-Sprinter 23375 | -1/Command | Spotted LK-BFN(L) 23387 | -1/Command | Used Integrity Redistributor, redistributed integrity from core (-45) 23398 | -1/Command | Identified Exp. Powered Armor 23481 | -1/Command | Warped through subspace to slip node 23481 | -1/Command | Discovered new exit (range 5) 23484 | -1/Command | Identified exit to Access_0 23488 | -1/Command | Entered Access_0 23489 | -1/Access_0 | Met Architect 23533 | -1/Access_0 | Subspace Access Node disabled 23534 | -1/Access_0 | A6 warped into view 23570 | -1/Access_0 | A5 warped into view 23589 | -1/Access_0 | Subspace Access Node disabled 23631 | -1/Access_0 | Subspace Access Node disabled 23651 | -1/Access_0 | Subspace Access Node disabled 23732 | -1/Access_0 | Fired Sigix Terminator 23732 | -1/Access_0 | Destroyed A8 23748 | -1/Access_0 | Used Integrity Redistributor, redistributed integrity from core (-112) 23753 | -1/Access_0 | Destroyed 18 combat bots 23802 | -1/Access_0 | Found Alien Energy Gun 23805 | -1/Access_0 | Identified Modified Quantum Sheargun 24046 | -1/Access_0 | Destroyed A6 24059 | -1/Access_0 | Used Integrity Redistributor, redistributed integrity from core (-157) 24060 | -1/Access_0 | Core integrity fell below 50% 24064 | -1/Access_0 | Destroyed A5 24068 | -1/Access_0 | Found Prototype Device 24068 | -1/Access_0 | Identified Desublimator 24125 | -1/Access_0 | Found Prototype Device 24125 | -1/Access_0 | Identified Exp. Actuator Array 24136 | -1/Access_0 | Destroyed 11 combat bots 24198 | -1/Access_0 | Destroyed Architect 24199 | -1/Access_0 | Architect triggered a singularity event 24200 | -1/Access_0 | Found Alien Artifact 24201 | -1/Access_0 | Extracted unknown sensor trigger ID from Architect's data core 24202 | -1/Access_0 | Warped through subspace to slip node 24202 | -1/Access_0 | Discovered exit to Surface (range 8) 24204 | *** | Escaped singularity! Last Messages --------------- 24175_ Penetrated by Quantum Shear. 24176_ Quantum Shear penetrates Architect. 24177_ Penetrated by Quantum Shear. 24178_ Quantum Shear penetrates Architect. 24178_ Destroyed Modified Quantum Sheargun. 24178_ Quantum Shear penetrates Architect. 24178_ Destroyed Dimensional Manipulator. 24182_ Quantum Shear penetrates Architect. 24198_ Architect: "If I can't win, no one wins!" 24198_ Architect destroyed. 24199_ A0_COM: Initiating irreversible singularity event. Goodbye. 24200_ A0_COM: 10. 24200_ Acquired Alien Artifact. 24201_ A0_COM: 9. 24201_ Acquired data core, extracted unknown sensor trigger ID. 24202_ A0_COM: 8. 24202_ Warped through subspace, drawn to slip node. 24202_ EXIT=FOUND: SURFACE 24203_ A0_COM: 7. 24204_ A0_COM: 6. Map ----- +----------------------------------------------------+ | | | | | | | | | | | | | | | | | | | | | | | | | | | | | | | | | ?????????????????????????????????????????????????? | | ?????????????????????????????????????????????????? | | ?????????????????????????????????????????????????? | | ?????????????????????????????????????????????????? | | ?????????????????????????????????????????????????? | | ?????????????????????????????????????????????????? | | ????????????????????????###??????????????????????? | | ???????????????????????## ##?????????????????????? | | ???????????????????????# #?????????????????????? | | ???????????????????????# @ #?????????????????????? | | ??????????????????????## #?????????????????????? | | ??????????????????????# #?????????????????????? | | ??????????????????????# ##?????????????????????? | | ??????????????????????## #?????????????????????? | | ??????????????????????# #?????????????????????? | | ??????????????????????# ##?????????????????????? | | ??????????????????????# < #?????????????????????? | | ??????????????????????# ##?????????????????????? | | ??????????????????????## #??????????????????????? | | ???????????????????????####??????????????????????? | | ?????????????????????????????????????????????????? | | ?????????????????????????????????????????????????? | | ?????????????????????????????????????????????????? | | ?????????????????????????????????????????????????? | | ?????????????????????????????????????????????????? | | ?????????????????????????????????????????????????? | | ?????????????????????????????????????????????????? | | ?????????????????????????????????????????????????? | | ?????????????????????????????????????????????????? | | ?????????????????????????????????????????????????? | | ?????????????????????????????????????????????????? | | ?????????????????????????????????????????????????? | | ?????????????????????????????????????????????????? | | ?????????????????????????????????????????????????? | +----------------------------------------------------+ Best States ------------- Heat Dissipation 162 Energy Generation 75 Energy Capacity 2270 Matter Stores 300 Matter Capacity 300 Sight Range 16 Robot Scan Range 30 Terrain Scan Density 10 Jamming Range 22 Armor Coverage 1300 Propulsion Shielding 66 Utility Shielding 90 Weapon Shielding 90 Weapon Cycling 25 Evasion (%) 66 Targeting Accuracy 24 Target Analysis 8 Armor Integrity Analysis 90 Recoil Reduction 3 Particle Charging 30 Overload Amplification 75 Offensive Hacking 71 Defensive Hacking 52 Item Schematics ----------------- Lrn. Sensor Array | -7/Factory | Hacked Nuclear Pulse Array | -7/Factory | Hacked Hyp. Coil Gun | -7/Factory | Scanalyzed Exp. Sensor Array | -7/Factory | Hacked Exp. Signal Interpreter | -7/Factory | Hacked EM Shield | -7/Factory | Hacked Exp. System Shield | -6/Factory | Scanalyzed Exp. Armor Integrity Analyzer | -6/Factory | Scanalyzed Exp. Targeting Computer | -6/Factory | Scanalyzed Exp. Propulsion Shielding | -6/Factory | Hacked Exp. Terrain Scan Processor | -6/Factory | Hacked Exp. Terrain Scanner | -6/Factory | Hacked Exp. Weapon Shielding | -6/Factory | Hacked Imp. Overload Amplifier | -6/Factory | Scanalyzed Cld. Aerolev Unit | -6/Factory | Scanalyzed Hacking Suite | -6/Factory | Scanalyzed Imp. Component Analysis Suite | -6/Factory | Hacked 0b10 Decoder Chip [Generic] | -6/Factory | Scanalyzed Combat Drone Bay | -6/Data Miner | Free Lgt. Regenerative Plating | -6/Data Miner | Free Cmb. Gravmag System | -6/Data Miner | Free Exp. Transmission Jammer | -6/Data Miner | Free Exp. ECM Suite | -6/Data Miner | Free Mni. Smartbomb Launcher | -6/Data Miner | Free Plasma Sword | -6/Data Miner | Free Adv. Hacking Suite | -5/Factory | Scanalyzed Exp. Cesium-ion Thruster | -5/Factory | Hacked Mni. Fusion Reactor | -5/Factory | Hacked Cld. Proton Cannon | -5/Factory | Hacked Hyp. Railgun | -5/Factory | Scanalyzed Adv. Weapon Cycler | -5/Factory | Scanalyzed Exp. Utility Shielding | -5/Factory | Hacked Adv. Force Field | -5/Factory | Hacked Impulse Thruster Array | -5/Factory | Hacked Com. HERF Cannon | -5/Factory | Hacked Assault Drone Bay | -5/Zhirov | Free Exp. Optical Array | -5/Zhirov | Free Imp. Arc Thrower | -5/Zhirov | Free Exp. Heat Sink | -5/Zhirov | Free Imp. Overload Regulator | -4/Factory | Hacked Particle Accelerator | -4/Factory | Hacked Exp. Force Field | -3/Research | Hacked Coolant Network | -3/Testing | Hacked Cld. Q-thruster | -2/Quarantine | Hacked Robot Schematics ------------------ S-27 Virus | -6/Data Miner | Free G-50 Soldier | -6/Data Miner | Free X-72 Disruptor | -6/Data Miner | Free P-70 Sage | -6/Data Miner | Free I-36 Angel | -6/Data Miner | Free I-47 Archangel | -6/Data Miner | Free Fabricated ------------ Lrn. Sensor Array | x1 | -7/Factory Exp. Sensor Array | x1 | -7/Factory Exp. Signal Interpreter | x1 | -7/Factory Exp. System Shield | x1 | -6/Factory Exp. System Shield | x1 | -6/Factory Exp. Armor Integrity Analyzer | x1 | -6/Factory Plasma Sword | x1 | -5/Factory Mni. Smartbomb Launcher | x1 | -5/Factory Exp. Cesium-ion Thruster | x1 | -5/Factory Exp. Cesium-ion Thruster | x1 | -5/Factory Mni. Fusion Reactor | x1 | -5/Factory Mni. Fusion Reactor | x1 | -5/Factory Adv. Hacking Suite | x1 | -5/Factory Cld. Proton Cannon | x1 | -4/Factory Exp. Utility Shielding | x1 | -4/Factory Exp. Weapon Shielding | x1 | -4/Factory Exp. Transmission Jammer | x1 | -4/Factory Exp. Targeting Computer | x1 | -3/Research Exp. Force Field | x1 | -3/Research Exp. Sensor Array | x1 | -3/Testing Coolant Network | x1 | -3/Testing Particle Accelerator | x1 | -2/Research Exp. Targeting Computer | x1 | -2/Research Cld. Q-thruster | x1 | -1/Access Cld. Q-thruster | x1 | -1/Access Alien Tech Used ----------------- Core Expander Integrated Reactor Sigix Broadsword Integrity Redistributor Integrated Dissipator LRC Boosters Subatomic Replicator Sigix Terminator Core Regenerator Sigix Quantum Sheargun Transdimensional Reconstructor Modified Quantum Sheargun Achievements -------------- Ride The Lightning Challenges ------------ None Game ------ Seed SubatomicTachyonDetonator Manual? 0 Play Time 09:02:45 Cumulative 764.6 hours Start 2020.06.21 @ 12:04:39 End 2020.06.27 @ 15:28:57 Sessions 7 Manual Loads 0 Difficulty Rogue Special Mode None Game No. 405 Rogue 405 Adventurer 0 Explorer 0 Win Type 6 Total 62 Types 34/4/13/6/1/1/3 Lore% 90 Gallery% 88 Achievement% 75 Wizard Run 0 Options --------- ASCII 0 Keyboard 0 Movement Mouse Keybinds 0 Fullscreen 0 Font 32/Smallcaps Map View 76x50 Tactical HUD 1 Map Filters NONE Filters NONE Steam 0 RUN: c6fe842b-a1a7-49f1-9d58-826ad056434b